Workbook

Sheet DANE
A1: INFO
A2: Numer | B2: 134
A3: Temat | B3: Aktualizacja i optymalizacja dokumentacji projektowej zadania wraz z pełnieniem nadzoru autorskiego podczas realizacji Inwestycji tj.: ”Rozbudowa drogi wojewódzkiej nr 548 Stolno-Wąbrzeźno od km 0+005 do km 29+619 z wyłączeniem węzła autostradowego w m. Lisewo od km 14+144 do km 15+146” Odcinek nr 1 – od km 0+005 do km 14+144
A5: CPV
A6: 45000000-9 | B6: Roboty budowlane w zakresie wznoszenia kompletnych obiektów budowlanych lub ich części oraz roboty w zakresie inżynierii lądowej i wodnej
A7: 45111000-8 | B7: Roboty w zakresie burzenia, roboty ziemne
A8: 45220000-5 | B8: Przepusty pod koroną drogi
A9: 45221110-6 | B9: Roboty budowlane w zakresie mostów
A10: 45221120-9 | B10: Roboty budowlane w zakresie wiaduktów
A11: 45230000-8 | B11: Roboty budowlane w zakresie budowy rurociągów, linii komunikacyjnych i elektroenergetycznych, autostrad, dróg, lotnisk i kolei; wyrównywanie terenu
A12: 45231220-3 | B12: Roboty budowlane w zakresie gazociągów
A13: 45231300-8 | B13: Roboty budowlane w zakresie budowy wodociągów i rurociągów do odprowadzania ścieków
A14: 45231400-9 | B14: Roboty budowlane w zakresie budowy linii energetycznych
A15: 45232310-8 | B15: Roboty budowlane w zakresie linii telefonicznych
A16: 45262522-6 | B16: Ekarany akustyczne
A17: 45332000-3 | B17: Roboty instalacyjne wodne i kanalizacyjne
A18: 45223500-1 | B18: Konstrukcje z betonu zbrojonego
A19: 45213320-2 | B19: Roboty budowlane w zakresie budowy obieków budowlanych związanych z transportem kolejowym
A21: Branza | C21: KOLORY
A22: D | B22: BRANŻA DROGOWA
A23: M | B23: BRANŻA MOSTOWA
A24: K-Ekr | B24: BRANŻA KONSTRUKCYJNA - EKRANY AKUSTYCZNE
A25: K-Rozb | B25: BRANŻA KONSTRUKCYJNA - ROZBIÓRKI
A26: S-Kd | B26: BRANŻA SANITARNA - KANALIZACJA DESZCZOWA
A27: S-Ks | B27: BRANŻA SANITARNA - KANALIZACJA SANITARNA
A28: S-G | B28: BRANŻA SANITARNA - SIEĆ GAZOWA
A29: S-W | B29: BRANŻA SANITARNA - SIEĆ WODOCIĄGOWA
A30: E-Osw | B30: BRANŻA ELEKTROENERGETYCZNA - OŚWIETLENIE
A31: E-nN | B31: BRANŻA ELEKTROENERGETYCZNA - SIEĆ NISKIEGO NAPIĘCIA
A32: E-SN | B32: BRANŻA ELEKTROENERGETYCZNA - SIEĆ ŚREDNIEGO NAPIĘCIA
A33: E-WN | B33: BRANŻA ELEKTROENERGETYCZNA - SIEĆ WYSOKIEGO NAPIĘCIA
A34: T | B34: BRANŻA TELEKOMUNIKACYJNA
A35: H | B35: BRANŻA MELIORACYJNA
A36: Z | B36: BRANŻA DENDROLOGICZNA

Sheet TER
A1: KOSZTORYS OFERTOWY 22.07
A2: Inwestycja | B2: =DANE!B3 -> Aktualizacja i optymalizacja dokumentacji projektowej zadania wraz z pełnieniem nadzoru autorskiego podczas realizacji Inwestycji tj.: ”Rozbudowa drogi wojewódzkiej nr 548 Stolno-Wąbrzeźno od km 0+005 do km 29+619 z wyłączeniem węzła autostradowego w m. Lisewo od km 14+144 do km 15+146” Odcinek nr 1 – od km 0+005 do km 14+144
A3: kod CPV: | B3: 45230000-8 Roboty budowlane w zakresie budowy rurociągów, linii komunikacyjnych i elektroenergetycznych, autostrad, dróg, lotnisk i kolei; wyrównywanie terenu
A4: Lp. | B4: TABELA ELEMENTÓW ROZLICZENIOWYCH
A5: 1 | B5: BRANŻA DROGOWA | E5: DROGA
A6: 2 | B6: BRANŻA MOSTOWA | E6: Roboty inżynieryjne
A7: 4 | B7: BRANŻA SANITARNA
B8: =UPPER(INDIRECT(CONCATENATE("'",E8,"'!C3"),TRUE)) -> KANALIZACJA DESZCZOWA | E8: kd
B9: WODOCIĄG | E9: w
A10: 5 | B10: BRANŻA ELEKTROENERGETYCZNA
B11: PRZEBUDOWA SIECI ELEKTROENERGETYCZNYCH | E11: En
B12: BUDOWA OŚWIETLENIA DROGOWEGO | E12: Os
B13: =UPPER(INDIRECT(CONCATENATE("'",E13,"'!C3"),TRUE)) -> ZASILANIE OBIEKTÓW | E13: Zasilanie
B14: =UPPER(INDIRECT(CONCATENATE("'",E14,"'!C3"),TRUE)) -> SIECI WŁ.PKP PLK | E14: PKP PLK
A15: 6 | B15: BRANŻA TELEKOMUNIKACYJNA | E15: TELETECHNIKA
A16: 7 | B16: BRANŻA MELIORACYJNA | E16: MELIORACJA
B18: SUMA NETTO
B19: VAT 23%
B20: SUMA BRUTTO
A23: ____________ | B23: ______________
A24: miejscowość, data | B24: podpis Wykonawcy

Sheet DROGA
A1: =DANE!B3 -> Aktualizacja i optymalizacja dokumentacji projektowej zadania wraz z pełnieniem nadzoru autorskiego podczas realizacji Inwestycji tj.: ”Rozbudowa drogi wojewódzkiej nr 548 Stolno-Wąbrzeźno od km 0+005 do km 29+619 z wyłączeniem węzła autostradowego w m. Lisewo od km 14+144 do km 15+146” Odcinek nr 1 – od km 0+005 do km 14+144
A2: Branża: | C2: BRANŻA DROGOWA 22.07
A3: Obiekt: | C3: Roboty drogowe
A4: Kod CPV: | C4: 45000000-9 Roboty budowlane w zakresie wznoszenia kompletnych obiektów budowlanych lub ich części oraz roboty w zakresie inżynierii lądowej i wodnej
A5: Poz. | B5: Podstawa wyceny | C5: Wyszczególnienie elementu rozliczeniowego | D5: Jedn. | E5: Ilość jedn. | F5: Cena jedn. | G5: Wartość robót
B6: D.01.00.00 | C6: ROBOTY PRZYGOTOWAWCZE | D6: x | E6: x | F6: x
B7: D.01.01.01 | C7: Wytyczenie trasy i punktów wysokościowych (zgodnie z planem sytuacyjnym) | D7: x | E7: x | F7: x | G7: x
A8: 1 | C8: - DW548, drogi publiczne | D8: km | E8: 14.63
B9: D.01.02.01 | C9: Usunięcie drzew i krzewów | D9: x | E9: x | F9: x
A10: =A8+1 -> 2 | C10: - usunięcie drzew: | D10: x | E10: x | F10: x | G10: x
A11: =A10+1 -> 3 | C11: - drzewa o średnicy do 15 cm | D11: szt. | E11: 3.00
A12: 4 | C12: - drzewa o średnicy 16 ÷ 25 cm | D12: szt. | E12: 11.00
A13: 5 | C13: - drzewa o średnicy 26 ÷ 35 cm | D13: szt. | E13: 1.00
A14: 6 | C14: - usunięcie karpiny | D14: szt. | E14: 206.00
A15: 7 | C15: - wywóz karpiny | D15: szt. | E15: 230.00
A16: 8 | C16: - usunięcie zakrzaczeń | D16: m2 | E16: 7625.00
B17: D.01.02.02 | C17: Zdjęcie humusu | D17: x | E17: x | F17: x | G17: x
A18: =A16+1 -> 9 | C18: - usuniecie warstwy ziemi urodzajnej/humusu | D18: m2 | E18: 106080.00
B19: D.01.02.04 | C19: Rozebranie elementów dróg, ogrodzeń, obiektów kubaturowych | D19: x | E19: x | F19: x
A20: =A18+1 -> 10 | C20: - rozebranie podbudowy z kruszywa łamanego gr. do 55cm | D20: m2 | E20: 72908.00
A21: 11 | C21: - rozebranie warstwy MCE gr.17cm do ponownego wbudowania | D21: m2 | E21: 13067.00
A22: 12 | C22: - rozebranie warstwy kruszywa gr. 17cm do ponownego wbudowania | D22: m2 | E22: 14875.00
A23: 13 | C23: - rozebranie warstwy kruszywa gr. 20cm do ponownego wbudowania | D23: m2 | E23: 3322.00
A24: 14 | C24: - rozebranie warstwy ulepszonego podłoża z gruntu stab.ziarnistym dodatkiem hydrofobowym gr.30cm do ponownego wbudowania | D24: m2 | E24: 29019.00
A25: =A24+1 -> 15 | C25: - rozebranie nawierzchni z kostki betonowej wraz z podbudową z kruszywa łamanego | D25: m2 | E25: 2881.50
A26: 16 | C26: - rozebranie nawierzchni z płyt betonowych chodnikowych | D26: m2 | E26: 458.30
A27: 17 | C27: - rozebranie krawężników betonowych wraz z ławą betonową | D27: mb | E27: 1461.50
A28: 18 | C28: - rozebranie obrzeży chodnikowych wraz z ławą betonową | D28: mb | E28: 1305.00
A29: 19 | C29: - rozebranie nawierzchni z płyt drogowych, żelbetowych | D29: m2 | E29: 183.00
A30: 20 | C30: - rozebranie chodników z betonu asfaltowego gr. 4 cm | D30: m2 | E30: 199.50
A31: 21 | C31: - rozebranie nawierzchni z trylinki | D31: m2 | E31: 482.50
A32: 22 | C32: - rozebranie nawierzchni z płyt kamiennych | D32: m2 | E32: 15.00
A33: 23 | C33: - rozebranie wiat przystankowych, murowanych | D33: kpl | E33: 3.00
A34: 24 | C34: - rozebranie wiaty przystankowej stalowej | D34: kpl | E34: 1.00
A35: 25 | C35: - rozebranie dobudówki | D35: kpl | E35: 1.00
A36: 26 | C36: - demontaż tarcz znakow drogowych | D36: szt | E36: 206.00
A37: 27 | C37: - demontaż konstrukcji pod tablice drogowe | D37: szt | E37: 24.00
A38: 28 | C38: - demontaż słupków znakow drogowych | D38: szt | E38: 125.00
A39: 29 | C39: - demontaż słupków hektometrowych | D39: szt | E39: 105.00
A40: 30 | C40: - rozebranie ogrodzeń | D40: mb | E40: 200.00
A41: 31 | C41: - rozebranie wykonanych krawężników betonowych wraz z ławą betonową do ponownego wbudowania do 50% | D41: mb | E41: 2211.00
A42: 32 | C42: - rozebranie wykonanych obrzeży betonowych wraz z ławą betonową do ponownego wbudowania do 50% | D42: mb | E42: 4993.00
A43: 33 | C43: - rozebranie wykonanej nawierzchni z kostki betonowej wraz z podbudową do ponownego wbudowania do 50% | D43: m2 | E43: 770.00
A44: 34 | C44: - rozebranie wykonanej nawierzchni z betonu asfaltowego wraz z podbudową | D44: m2 | E44: 1980.00
A45: 35 | C45: - rozebranie wykonanych ścieków betonowych wraz z ławą betonową do ponownego wbudowania do 50% | D45: mb | E45: 106.00
A46: 36 | C46: - rozebranie wykonanych rowów krytych do ponownego wbudowania do 50% | D46: mb | E46: 267.00
A47: 37 | C47: - rozebranie zjazdów z nawierzchni kruszywa | D47: m2 | E47: 167.00
A48: 38 | C48: - przestawienie kamery | D48: kpl | E48: 1.00
A49: 39 | C49: - przestawienie kapliczki w m.Lisewo | D49: kpl | E49: 1.00
B50: D.02.00.00 | C50: ROBOTY ZIEMNE | D50: x | E50: x | F50: x
B51: D.02.01.01 | C51: Wykonanie wykopów w gruntach kat. I-V. Wykonanie nasypów | D51: x | E51: x | F51: x | G51: x
A52: =A49+1 -> 40 | C52: - wykopy | D52: m3 | E52: 178714.00
A53: 41 | C53: - nasypy | D53: m3 | E53: 21265.00
B54: D.02.03.02 | C54: WZMOCNIENIE GEOSYNTETYKIEM PODŁOŻA I KONSTRUKCJI NASYPU | D54: x | E54: x | F54: x | G54: x
A55: =A53+1 -> 42 | C55: - wykonanie wzmocnienia podłoża i konstrukcji nasypów geosyntetykiem | D55: m2 | E55: 8249.00
B56: D.03.00.00 | C56: ODWODNIENIE KORYTA DROGOWEGO | D56: x | E56: x | F56: x
B57: D.03.05.01 | C57: Drenaż koryta drogowego | D57: x | E57: x | F57: x | G57: x
A58: =A55+1 -> 43 | C58: - wykonanie drenażu rurami PCV d=150mm osłoniętych geowłókniną ciągłą z PP w obsypce z kruszywa 16/31,5mm wraz z armaturą | D58: mb | E58: 3790.00
B59: D.04.00.00 | C59: PODBUDOWY | D59: x | E59: x | F59: x
B60: D.04.02.01 | C60: Warstwy zabezpieczające. Warstwa odsączająca / mrozoochronna | D60: x | E60: x | F60: x | G60: x
A61: =A58+1 -> 44 | C61: - wykonanie warstwy odsączającej z mieszanki niezwiązanej gr. 25cm, 0/31,5 (CBR≥40, SE≥35) - zatoki autobusowe, pierścienie ronda, powierzchnie przejezdne i miejsca postojowe | D61: m2 | E61: 1694.00
A62: =A61+1 -> 45 | C62: - wykonanie warstwy odsączającej z mieszanki niezwiązanej gr. 25cm, 0/31,5 (CBR≥40, SE≥35) - drogi boczne | D62: m2 | E62: 8719.80
B63: D.04.02.01a | C63: Podłoże ulepszone z mieszanki niezwiązanej | D63: x | E63: x | F63: x | G63: x
A64: =A62+1 -> 46 | C64: - warstwa grubości 20 cm, 0/31,5 (CBR≥40, SE≥35) - zjazdy publiczne | D64: m2 | E64: 409.90
A65: =A64+1 -> 47 | C65: - warstwa grubości 20 cm, 0/31,5 (CBR≥40, SE≥35) - zjazdy indywidualne | D65: m2 | E65: 10,247.60
A66: 48 | C66: - warstwa grubości 20 cm, 0/31,5 (CBR≥40, SE≥35) - zjazdy do zbiorników | D66: m2 | E66: 473.00
A67: 49 | C67: - warstwa grubości 10 cm, 0/31,5 (CBR≥40, SE≥35) - ciągi piesze | D67: m2 | E67: 12,736.90
A68: 50 | C68: - warstwa grubości 10 cm, 0/31,5 (CBR≥40, SE≥35) - ciągi pieszo-rowerowe na terenie zabudowy | D68: m2 | E68: 11,581.90
A69: 51 | C69: - warstwa grubości 20 cm, 0/31,5 (CBR≥40, SE≥35) - ciągi pieszo-rowerowe na wysokości zjazdów | D69: m2 | E69: 840.00
A70: 52 | C70: - warstwa grubości 10 cm, 0/31,5 (CBR≥40, SE≥35) - ciągi pieszo-rowerowe poza terenem zabudowy | D70: m2 | E70: 18,256.70
A71: 53 | C71: - warstwa grubości 10 cm, 0/31,5 (CBR≥40, SE≥35) - wyspy dzielące | D71: m2 | E71: 580.80
B72: D.04.02.01b | C72: Podłoże ulepszone z mieszanki związanej hydraulicznie | D72: x | E72: x | F72: x | G72: x
A73: =A71+1 -> 54 | C73: - warstwa grubości 25 cm (C1,5/2) | D73: m2 | E73: 1,694.00
A74: =A73+1 -> 55 | C74: - warstwa grubości 25 cm (C1,5/2) - drogi boczne | D74: m2 | E74: 8,719.80
B75: D.04.02.01c | C75: Wymiana lub wzmocnienie gruntu | D75: x | E75: x | F75: x | G75: x
A76: =A74+1 -> 56 | C76: - wymiana gruntu na grunt z materiału żwirowo-piaskowego o uziarnieniu 0/12,5 lub wzmocnienie gruntu | D76: m2 | E76: 58435.00
B77: D.04.03.01 | C77: Oczyszczenie i skropienie warstw konstrukcyjnych | D77: x | E77: x | F77: x | G77: x
A78: =A76+1 -> 57 | C78: - warstw konstrukcyjnych niebitumicznych | D78: m2 | E78: 178624.82
A79: 58 | C79: - warstw konstrukcyjnych bitumicznych | D79: m2 | E79: x | F79: x | G79: x
A80: 59 | C80: - warstwa ścieralna | D80: m2 | E80: 136824.00
A81: 60 | C81: - warstwa wiążąca | D81: m2 | E81: 110878.70
A82: 61 | C82: - podbudowa zasadnicza | D82: m2 | E82: 121709.95
B83: D.04.04.02 | C83: Podbudowa z mieszanki z kruszywa niezwiązanego | D83: x | E83: x | F83: x | G83: x
A84: =A82+1 -> 62 | C84: - podbudowa zasadnicza z mieszanki niezwiązanej z kruszywa łamanego stabilizowanego mechanicznie 0/31,5, (CBR≥60, SE≥40) gr. 20cm - zjazdy publiczne | D84: m2 | E84: 168.29
A85: 63 | C85: - podbudowa zasadnicza z mieszanki niezwiązanej z kruszywa łamanego stabilizowanego mechanicznie 0/31,5, (CBR≥60, SE≥40) gr. 20cm - zjazdy indywidualne | D85: m2 | E85: 6010.40
A86: 64 | C86: - podbudowa zasadnicza z mieszanki niezwiązanej z kruszywa łamanego stabilizowanego mechanicznie 0/31,5, (CBR≥60, SE≥40) gr. 22cm - zjazdy indywidualne | D86: m2 | E86: 4747.60
A87: 64.1. | C87: - podbudowa zasadnicza z mieszanki niezwiązanej z kruszywa łamanego stabilizowanego mechanicznie 0/31,5, (CBR≥60, SE≥40) gr. 22cm - zjazdy publiczne | D87: m2 | E87: 72.13
A88: =A86+1 -> 65 | C88: - podbudowa z mieszanki niezwiązanej z kruszywa łamanego stabilizowanego mechanicznie 0/31,5, (CBR≥60, SE≥40) gr. 20cm - zjazdy do zbiorników | D88: m2 | E88: 473.00
A89: 66 | C89: - podbudowa z mieszanki niezwiązanej z kruszywa łamanego stabilizowanego mechanicznie 0/31,5, (CBR≥40, SE≥35) gr. 15cm - ciągi piesze | D89: m2 | E89: 12157.95
A90: 67 | C90: - podbudowa z mieszanki niezwiązanej z kruszywa łamanego stabilizowanego mechanicznie 0/31,5, (CBR≥40, SE≥35) gr. 15cm - ciągi pieszo-rowerowe na terenie zabudowy | D90: m2 | E90: 11055.45
A91: 68 | C91: - podbudowa z mieszanki niezwiązanej z kruszywa łamanego stabilizowanego mechanicznie 0/31,5, (CBR≥60, SE≥40) gr. 20cm - ciągi pieszo-rowerowe na wysokości zjazdów | D91: m2 | E91: 760.00
A92: =A90+1 -> 68 | C92: - podbudowa z mieszanki niezwiązanej z kruszywa łamanego stabilizowanego mechanicznie 0/31,5, (CBR≥60, SE≥40) gr. 26cm - ciągi pieszo-rowerowe na wysokości zjazdów | D92: m2 | E92: 800.00
A93: =A92+1 -> 69 | C93: - podbudowa z mieszanki niezwiązanej z kruszywa łamanego stabilizowanego mechanicznie 0/31,5, (CBR≥40, SE≥35) gr. 20cm - ciągi pieszo-rowerowe poza terenem zabudowy | D93: m2 | E93: 17426.85
A94: 70 | C94: - podbudowa z mieszanki niezwiązanej z kruszywa łamanego stabilizowanego mechanicznie 0/31,5, (CBR≥40, SE≥35) gr. 15cm - wyspy dzielące | D94: m2 | E94: 572.00
A95: 71 | C95: - podbudowa z mieszanki niezwiązanej z kruszywa łamanego stabilizowanego mechanicznie 0/31,5, (CBR≥40, SE≥35) gr. 25cm - zatoki autobusowe, powierzchnie przejezdne, pierścienie rond i miejsca postojowe | D95: m2 | E95: 3235.05
A96: 72 | C96: - podbudowa z mieszanki niezwiązanej z kruszywa łamanego stabilizowanego mechanicznie 0/31,5, (CBR≥60, SE≥40) gr. 20cm - drogi boczne | D96: m2 | E96: 15986.30
B97: D.04.04.02a. | C97: Podbudowa z mieszanki mineralno-cementowo-emulsyjnej | D97: x | E97: x | F97: x | G97: x
A98: =A96+1 -> 73 | C98: - warstwa grubości 17 cm | D98: m2 | E98: 93383.30
A99: =A98+1 -> 74 | C99: - warstwa grubości 17 cm z materiału z odzysku | D99: m2 | E99: 13067.00
B100: D.04.06.01 | C100: Podbudowa z mieszanki związanej cementem C8/10 gr.25cm | D100: x | E100: x | F100: x | G100: x
A101: =A99+1 -> 75 | C101: - w-wa podbudowygr. 25cm - zatoki autobusowe, pierścienie ronda, powierzchnie przejezdne i miejsca postojowe | D101: m2 | E101: 3235.00
B102: D.04.07.01 | C102: Podbudowa bitumiczna. Podbudowa z betonu asfaltowego AC | D102: x | E102: x | F102: x | G102: x
A103: =A101+1 -> 76 | C103: - w-wa podbudowy zasadniczej AC16P 50/70, gr. 8 cm drogi boczne KR2 | D103: m2 | E103: 15259.65
B104: D.04.12.01 | C104: Warstwa ulepszonego podłoża | D104: x | E104: x | F104: x | G104: x
A105: =A103+1 -> 77 | C105: - warstwa ulepszonego podłoża z gruntu stab.ziarnistym dodatkiem hydrofobowym gr.30cm z doziarnieniem i osuszeniem | D105: m2 | E105: 76140.80
A106: =A105+1 -> 78 | C106: - warstwa ulepszonego podłoża z gruntu stab.ziarnistym dodatkiem hydrofobowym gr.30cm z materiału z odzysku | D106: m2 | E106: 29019.00
B107: D.05.00.00 | C107: NAWIERZCHNIE | D107: x | E107: x | F107: x
A108: =A106+1 -> 79 | B108: D.05.02.01 | C108: Warstwa wiążąca z betonu asfaltowego AC 16W | D108: x | E108: x | F108: x | G108: x
A109: =A108+1 -> 80 | C109: - warstwa wiążąca AC 16W PMB 45/80-65 grubości 8 cm DW 548 | D109: m2 | E109: 110878.70
A110: =A109+1 -> 81 | C110: - warstwa wiążąca AC 16W grubości 5 cm zjazdy | D110: m2 | E110: 4532.00
B111: D.05.03.01 | C111: Nawierzchnia z betonu cementowego dyblowana i kotwiona gr.20cm | D111: x | E111: x | F111: x | G111: x
A112: =A110+1 -> 82 | C112: - nawierzchnia zatok autobusowych | D112: m2 | E112: 1795.00
A113: =A112+1 -> 83 | C113: - nawierzchnia miejsc postojowych | D113: m2 | E113: 1001.00
A114: =A113+1 -> 84 | C114: - nawierzchnia powierzchni przejezdnych w rejonie skrzyżowań | D114: m2 | E114: 120.00
A115: 85 | C115: - nawierzchnia pierścienia ronda | D115: m2 | E115: 165.00
B116: D.05.03.03. | C116: Nawierzchnia z płyt betonowych | D116: x | E116: x | F116: x | G116: x
A117: =A115+1 -> 86 | C117: - nawierzchnia z płyt betonowych typu IOMB 12x75x100cm a w-wie stabilizacji RM 1,5-2,5MPa wypełnioną mieszanką niezwiązaną 0/8 | D117: m2 | E117: 430.00
B118: D.05.03.05a | C118: Nawierzchnia z betonu asfaltowego AC 11S | D118: x | E118: x | F118: x | G118: x
A119: =A117+1 -> 87 | C119: - ciągi pieszo-rowerowe poza terenem zabudowy, grubośc warstwy 5 cm | D119: m2 | E119: 16597.00
A120: =A119+1 -> 88 | C120: - warstwa ścieralna z BA gr. 4 cm drogi boczne KR2 | D120: m2 | E120: 14533.00
A121: =A120+1 -> 89 | C121: - warstwa ścieralna z BA gr. 4 cm zjazdy | D121: m2 | E121: 4316.00
B122: D.05.03.11 | C122: Frezowanie nawierzchni asfaltowej na zimno | D122: x | E122: x | F122: x | G122: x
A123: =A121+1 -> 90 | C123: - frezowanie nawierzchni asfaltowej na zimno gr.średnio 5cm | D123: m2 | E123: 44703.00
A124: =A123+1 -> 91 | C124: - frezowanie nawierzchni asfaltowej na zimno gr.średnio 10cm | D124: m2 | E124: 27900.00
A125: =A124+1 -> 92 | C125: - frezowanie nawierzchni asfaltowej na zimno gr.średnio 25cm | D125: m2 | E125: 66280.00
B126: D.05.03.13a. | C126: Warstwa ścieralna z mieszanki mineralno-asfaltowej SMA | D126: x | E126: x | F126: x | G126: x
A127: =A125+1 -> 93 | C127: - warstwa ścieralna SMA 8 PMB 45/80-65 gr. 4 cm DW 548 KR4 | D127: m2 | E127: 105694.00
B128: D.05.03.23 | C128: Nawierzchnia z betonowej kostki brukowej | D128: x | E128: x | F128: x | G128: x
A129: =A127+1 -> 94 | C129: - nawierzchnia z kostki betonowej gr. 8 cm, czerwonej, układanej na w-wie stabilizacji RM 1,5-2,5MPa gr. 3 cm - zjazdy indywidualne | D129: m2 | E129: 5,464.00
A130: =A129+1 -> 95 | C130: - nawierzchnia z kostki betonowej gr. 8 cm, czerwonej, układanej na w-wie stabilizacji RM 1,5-2,5MPa gr. 3 cm - zjazdy publiczne | D130: m2 | E130: 218.56
A131: =A130+1 -> 96 | C131: - nawierzchnia z kostki betonowej bezfazowej gr. 8 cm, szarej, układanej na podsypce z mieszanki niezwiązanej 0/4 gr. 3 cm - ciag pieszo-rowerowy | D131: m2 | E131: 10,529.00
A132: 97 | C132: - nawierzchnia z kostki betonowej gr. 8 cm, szarej, układanej na podsypce z mieszanki niezwiązanej 0/4 gr. 3 cm - ciag pieszy | D132: m2 | E132: 11,579.00
A133: 98 | C133: - nawierzchnia z kostki betonowej gr. 8 cm,kolor, układanej na podsypce z mieszanki niezwiązanej 0/4 gr. 3 cm - wyspy dzielące | D133: m2 | E133: 520.00
A134: 99 | C134: - nawierzchnia z kostki betonowej gr. 8 cm, z wypustkami (integracyjnej), układanej na podsypce z mieszanki niezwiązanej 0/4 gr. 3 cm | D134: m2 | E134: 104.00
A135: 100 | C135: - nawierzchnia z kostki betonowej gr. 8 cm, szarej, układanej na podsypce z mieszanki niezwiązanej 0/4 gr. 3 cm z materiału z odzysku | D135: m2 | E135: 120.00
A136: 101 | C136: - nawierzchnia z kostki betonowej bezfazowejgr. 8 cm, szarej, układanej na podsypce z mieszanki niezwiązanej 0/4 gr. 3 cm z materiału z odzysku | D136: m2 | E136: 365.00
A137: 102 | C137: - nawierzchnia z kostki betonowej gr. 8 cm, czerwonej, układanej na w-wie stabilizacji RM 1,5-2,5MPa gr. 3 cm z materiału z odzysku | D137: m2 | E137: 50.00
A138: 103 | C138: - nawierzchnia wysp dzielących z kostki betonowej gr. 8 cm, szarej, układanej na podsypce z mieszanki niezwiązanej 0/4 gr. 3 cm | D138: m2 | E138: 528.00
B139: D.05.04.02 | C139: Połączenie konstrukcji nowej nawierzchni z istniejącą | D139: x | E139: x | F139: x | G139: x
A140: =A138+1 -> 104 | C140: - powiązanie z drogami istniejącymi - siatka szklana | D140: m2 | E140: 560.00
B141: D.06.00.00 | C141: ROBOTY WYKOŃCZENIOWE | D141: x | E141: x | F141: x
B142: D.06.01.01 | C142: Umocnienie powierzchniowe skarp, rowów i ścieków | D142: x | E142: x | F142: x | G142: x
A143: =A140+1 -> 105 | C143: - humusowanie wraz z obsianiem 10cm (skarpy) | D143: m2 | E143: 99045.00
A144: =A143+1 -> 106 | C144: - humusowanie wraz z obsianiem gr. 10cm (tereny zielone w pasie drogowym) | D144: m2 | E144: 24314.00
B145: D.06.02.01 | C145: - umocnienie skarp płytami betonowymi | D145: x | E145: x | F145: x | G145: x
A146: =A144+1 -> 107 | C146: - wzmocnienie powierzchniowe płytami ażurowymi | D146: m2 | E146: 1735.00
B147: D.06.03.01 | C147: Pobocze gruntowe z mieszanki niezwiązanej z kruszywa łamanego stabilizowanego mechanicznie 0/31,5, grubość warstwy 15cm | D147: x | E147: x | F147: x | G147: x
A148: =A146+1 -> 108 | C148: - DW548, drogi boczne | D148: m2 | E148: 52432.00
A149: 109 | C149: - zjazdy indywidualne, zjazdy publiczne | D149: m2 | E149: 578.00
B150: D.07.00.00 | C150: URZĄDZENIA BEZPIECZEŃSTWA RUCHU | D150: x | E150: x | F150: x
B151: D.07.01.01 | C151: Oznakowanie poziome | D151: x | E151: x | F151: x | G151: x
A152: =A149+1 -> 110 | C152: - linie na skrzyżowaniach - grubowarstwowe - (P-10, P-13, P-14, P-1d, P-1e, P-21a) | D152: m2 | E152: 1321.00
A153: 111 | C153: - linie przerywane - grubowarstwowe - (P-7a) | D153: m2 | E153: 565.00
A154: 112 | C154: - linie ciągłe - grubowarstwowe - (P-2b, P-4, P-7b, P-17) | D154: m2 | E154: 4268.00
A155: 113 | C155: - strzałki i inne symbole - grubowarstwowe - (P-23, P-25, P-27) | D155: m2 | E155: 120.00
A156: 114 | C156: - punktowe elementy odblaskowe typ 1 | D156: szt. | E156: 311.00
A157: 115 | C157: - punktowe elementy odblaskowe typ 5 | D157: szt. | E157: 288.00
A158: 116 | C158: - punktowe elementy odblaskowe typ 7 | D158: szt. | E158: 744.00
B159: D.07.02.01 | C159: Oznakowanie pionowe i konstrukcje wsporcze | D159: x | E159: x | F159: x | G159: x
A160: =A158+1 -> 117 | C160: - słupki do znaków drogowych | D160: szt. | E160: 353.00
A161: 118 | C161: - tarcze znaków ostrzegawczych "A" | D161: szt. | E161: 96.00
A162: 119 | C162: - tarcze znaków zakazu "B" | D162: szt. | E162: 82.00
A163: 120 | C163: - tarcze znaków nakazu "C" | D163: szt. | E163: 88.00
A164: 121 | C164: - tarcze znaków informacyjnych "D" | D164: szt. | E164: 121.00
A165: 122 | C165: - tablice kierunku i miejscowości "E" | D165: szt. | E165: 56.00
A166: =A165+1 -> 123 | C166: - tarcze znaków uzupełniających "F" | D166: szt. | E166: 2.00
A167: 124 | C167: - tabliczki do znaków drogowych "T" | D167: szt. | E167: 39.00
A168: 125 | C168: - urządzenia bezpieczeństwa ruchu "U" w gniazdach RS | D168: szt. | E168: 30.00
A169: 126 | C169: - pylony ostrzegawcze U-5 w gniazdach RS | D169: szt. | E169: 31.00
A170: 127 | C170: - tablice znaków "G" | D170: szt. | E170: 6.00
A171: =A170+1 -> 128 | C171: - konstrukcje wsporcze dla tablic | D171: kpl | E171: 16.00
A172: =A171+1 -> 129 | B172: D.07.02.02 | C172: Słupki prowadzące i krawędziowe | D172: szt | E172: 287.00
B173: D.07.05.01 | C173: Bariery ochronne stalowe | D173: x | E173: x | F173: x | G173: x
A174: =A172+1 -> 130 | C174: - N2/W3/A | D174: mb | E174: 409.00
A175: 131 | C175: - N2/W3/A z poręczą | D175: mb | E175: 423.00
B176: D.07.06.03 | C176: Urządzenia zabezpieczające ruch pieszych. Balustrady dla pieszych | D176: x | E176: x | F176: x | G176: x
A177: =A175+1 -> 132 | C177: - U-12 | D177: mb | E177: 856.00
A178: 132.1 | C178: - U-11 | D178: mb | E178: 2000.00
B179: D.08.00.00 | C179: ELEMENTY ULIC | D179: x | E179: x | F179: x
B180: D.08.01.01 | C180: Krawężniki betonowe na ławie betonowej | D180: x | E180: x | F180: x | G180: x
A181: =A177+1 -> 133 | C181: - krawężnik betonowy 20x30x100 | D181: mb | E181: 12,151.00
A182: 134 | C182: - krawężnik betonowy obniżony 4 cm 20x22x100 | D182: mb | E182: 2,250.00
A183: 135 | C183: - krawężnik betonowy obniżony 0 cm 12x25x100 | D183: mb | E183: 1,129.00
A184: 136 | C184: - krawężniki betonowe z materiału z odzysku | D184: mb | E184: 1,130.00
B185: D.08.01.02 | C185: Krawężniki kamienne na ławie betonowej | D185: x | E185: x | F185: x | G185: x
A186: =A184+1 -> 137 | C186: - krawężnik kamienny obniżony 20x22x100 | D186: mb | E186: 220.00
B187: D.08.02.01 | C187: Betonowe obrzeża chodnikowe na ławie betonowej | D187: x | E187: x | F187: x | G187: x
A188: =A186+1 -> 138 | C188: - betonowe obrzeża chodnikowe 8x30x100 cm na ławie betonowej | D188: mb | E188: 22636.00
A189: =A188+1 -> 139 | C189: - betonowe obrzeża chodnikowe z materiału z odzysku | D189: mb | E189: 2496.50
B190: D.08.03.01 | C190: Palisada betonowa | D190: x | E190: x | F190: x | G190: x
A191: =A189+1 -> 140 | C191: - betonowa palisada 18x18x120cm | D191: mb | E191: 351.00
B192: D.08.05.01 | C192: Ścieki korytkowe z prefabrykowanych elementów betonowych | D192: x | E192: x | F192: x | G192: x
A193: =A191+1 -> 141 | C193: - ściek muldowy 50x60x15 | D193: mb | E193: 4225.00
A194: =A193+1 -> 142 | C194: - ściek muldowy 50x60x15 z materiału z odzysku | D194: mb | E194: 53.00
A195: =A194+1 -> 143 | B195: D.08.05.02 | C195: Ścieki skarpowe z prefabrykowanych elementów betonowych | D195: mb | E195: 48.00
A196: =A195+1 -> 144 | B196: D.08.05.03. | C196: Ścieki z brukowej kostki betonowej | D196: mb | E196: 1,276.00
B197: D.09.00.00 | C197: ZIELEŃ DROGOWA | D197: x | E197: x | F197: x
B198: D.09.01.01 | C198: Nasadzenia | D198: x | E198: x | F198: x | G198: x
A199: =A196+1 -> 145 | C199: - klon | D199: szt. | E199: 364.00
A200: =A199+1 -> 146 | C200: - jesion | D200: szt. | E200: 401.00
... 14 more rows

Sheet Roboty inżynieryjne
A1: Aktualizacja i optymalizacja dokumentacji projektowej zadania wraz z pełnieniem nadzoru autorskiego podczas realizacji Inwestycji tj.: "Rozbudowa drogi wojewódzkiej nr 548 Stolno-Wąbrzeźno od km 0+005 do km 29+619 z wyłączeniem węzła autostradowego w m. Lisewo od km 14+144 do km 15+146
A2: ROBOTY INŻYNIERYJNE 22.07
A3: L.p. | B3: Numer STWiORB | C3: Wyszczególnienie elementu rozliczeniowego | D3: Jednostka | F3: Cena jednostkowa | G3: Wartość robót
D4: Nazwa | E4: Ilość
A5: PRZEPUST KM 1+491,50
B6: M.01.00.00. | C6: Roboty przygotowawcze | D6: x | E6: x | F6: x | G6: x
B7: M.01.01.00. | C7: Obsługa geodezyjna budowy | D7: x | E7: x | F7: x | G7: x
A8: 1 | B8: M.01.01.01. | C8: Wytyczenie drogowego obiektu inżynierskiego | D8: kpl | E8: 1.00
B9: M.11.00.00. | C9: Fundamentowanie | D9: x | E9: x | F9: x | G9: x
B10: M.11.01.00. | C10: Roboty ziemne | D10: x | E10: x | F10: x | G10: x
A11: =A8+1 -> 2 | B11: M.11.01.03. | C11: Wykopy pod fundamenty w gruncie spoistym z czasowym zabezpieczeniem | D11: m3 | E11: 1,847.00
B12: M.11.01.05. | C12: Zasypanie wykopów fundamentowych oraz przestrzeni wokół przepustów wraz z zagęszczeniem | D12: x | E12: x | F12: x | G12: x
A13: =A11+1 -> 3 | C13: - fundament kruszywowy | D13: m3 | E13: 45.60
A14: =A13+1 -> 4 | C14: - geotkanina polipropylenowa | D14: m2 | E14: 130.50
A15: =A14+1 -> 5 | C15: - zasypka inżynierska przepustu | D15: m3 | E15: 260.00
A16: =A15+1 -> 6 | C16: - zasypanie wykopu wraz z zagęszczeniem | D16: m3 | E16: 1,278.50
B17: M.12.00.00. | C17: ZBROJENIE | D17: x | E17: x | F17: x | G17: x
B18: M.12.01.00. | C18: Stal zbrojeniowa | D18: x | E18: x | F18: x | G18: x
A19: =A16+1 -> 7 | B19: M.12.01.03. | C19: Zbrojenie betonu stalą klasy A-IIIN | D19: kg | E19: 3,634.40
B20: M.13.00.00. | C20: Beton | D20: x | E20: x | F20: x | G20: x
B21: M.13.01.00. | C21: Beton konstrukcyjny | D21: x | E21: x | F21: x | G21: x
A22: =A19+1 -> 8 | C22: - podparcie dla wieńca z betonu C30/37 | D22: m3 | E22: 5.00
A23: =A22+1 -> 9 | C23: - wieniec żelbetowy z betonu C30/37 | D23: m3 | E23: 6.00
A24: =A23+1 -> 10 | C24: - fundament ściany oporowej z betonu C25/30 | D24: m3 | E24: 5.60
A25: =A24+1 -> 11 | C25: - zwieńczenie żelbetowe z betonu C25/30 | D25: m3 | E25: 14.00
B26: M.13.03.00. | C26: Prefabrykaty betonowe | D26: x | E26: x | F26: x | G26: x
A27: =A25+1 -> 12 | C27: - deska gzymsowa h=600mm | D27: m | E27: 45.00
B28: M.15.00.00. | C28: Izolacje i nawierzchnie | D28: x | E28: x | F28: x | G28: x
B29: M.15.01.00. | C29: Izolacje i nawierzchnie na obiektach | D29: x | E29: x | F29: x | G29: x
A30: =A27+1 -> 13 | B30: M.15.01.03. | C30: Izolacje bitumiczne wykonywane na zimno | D30: m2 | E30: 30.50
B31: M.19.00.00. | C31: Urządzenia zabezpieczające | D31: x | E31: x | F31: x | G31: x
A32: =A30+1 -> 14 | B32: M.19.01.04 | C32: Balustrady na ściankach czołowych przepustów | D32: m | E32: 45.00
B33: M.20.00.00. | C33: Inne roboty mostowe | D33: x | E33: x | F33: x | G33: x
A34: =A32+1 -> 15 | B34: M.20.01.03. | C34: Umocnienie stożków i skarp | D34: m2 | E34: 10.50
A35: =A34+1 -> 16 | B35: M.20.01.10. | C35: Umocnienie dna i skarp cieku | D35: m2 | E35: 360.00
B36: M.20.01.12. | C36: Wygrodzenia dla płazów | D36: x | E36: x | F36: x | G36: x
A37: =A35+1 -> 17 | C37: - kładka dla zwierząt | D37: szt. | E37: 4.00
B38: M.20.01.15. | C38: Przepusty z blachy falistej | D38: x | E38: x | F38: x | G38: x
A39: =A37+1 -> 18 | C39: - rura stalowa d=2800 mm | D39: m | E39: 16.00
A40: =A39+1 -> 19 | C40: - stalowa półka dla zwierząt szer. 0,5 m | D40: m | E40: 32.00
A41: =A40+1 -> 20 | C41: - element złazowy półki dla zwierząt szer. 0,5 m | D41: m | E41: 6.00
A42: =A41+1 -> 21 | B42: M.20.01.16. | C42: Ściany oporowe z bloczków prefabrykowanych | D42: m2 | E42: 240
B43: M.21.00.00. | C43: Roboty rozbiórkowe i remontowe | D43: x | E43: x | F43: x | G43: x
B44: M.21.01.03. | C44: Rozbiórka elementów betonowych, żelbetowych i ceglanych | D44: x | E44: x | F44: x | G44: x
A45: =A42+1 -> 22 | C45: - konstrukcja przepustu w km 1+506 - konstrukcja z cegły | D45: m3 | E45: 163.50
A46: =A45+1 -> 23 | C46: - konstrukcja przepustu w km 1+506 - konstrukcja z kamienia | D46: m3 | E46: 36.80
A47: PRZEPUST KM 11+006,00
B48: M.01.00.00. | C48: Roboty przygotowawcze | D48: x | E48: x | F48: x | G48: x
B49: M.01.01.00. | C49: Obsługa geodezyjna budowy | D49: x | E49: x | F49: x | G49: x
A50: =A46+1 -> 24 | B50: M.01.01.01. | C50: Wytyczenie drogowego obiektu inżynierskiego | D50: kpl | E50: 1.00
B51: M.11.00.00. | C51: FUNDAMENTOWANIE | D51: x | E51: x | F51: x | G51: x
B52: M.11.01.00. | C52: Roboty ziemne | D52: x | E52: x | F52: x | G52: x
A53: =A50+1 -> 25 | B53: M.11.01.03. | C53: Wykopy pod fundamenty w gruncie spoistym z czasowym zabezpieczeniem | D53: m3 | E53: 620.50
B54: M.11.01.05. | C54: Zasypanie wykopów fundamentowych oraz przestrzeni wokół przepustów wraz z zagęszczeniem | D54: x | E54: x | F54: x | G54: x
A55: =A53+1 -> 26 | C55: - fundament kruszywowy | D55: m3 | E55: 61.50
C56: - geotkanina polipropylenowa | D56: m2 | E56: 210.20
A57: =A55+1 -> 27 | C57: - zasypka inżynierska przepustu | D57: m3 | E57: 255.80
A58: =A57+1 -> 28 | C58: - zasypanie wykopu wraz z zagęszczeniem | D58: m3 | E58: 125.50
B59: M.20.00.00. | C59: Inne roboty mostowe | D59: x | E59: x | F59: x | G59: x
A60: =A58+1 -> 29 | B60: M.20.01.03. | C60: Umocnienie stożków i skarp | D60: m2 | E60: 35.50
A61: =A60+1 -> 30 | B61: M.20.01.10. | C61: Umocnienie dna i skarp cieku | D61: m2 | E61: 45.00
B62: M.20.01.12. | C62: Wygrodzenia dla płazów | D62: x | E62: x | F62: x | G62: x
A63: =A61+1 -> 31 | C63: - kładka dla zwierząt | D63: szt. | E63: 2.00
B64: M.20.01.15. | C64: Przepusty z blachy falistej | D64: x | E64: x | F64: x | G64: x
A65: =A63+1 -> 32 | C65: - rura stalowa d=2100 mm | D65: m | E65: 21.24
A66: =A65+1 -> 33 | C66: - stalowa półka dla zwierząt szer. 0,5 m | D66: m | E66: 42.48
A67: =A66+1 -> 34 | C67: - element złazowy półki dla zwierząt szer. 0,5 m | D67: m | E67: 5.60
A68: Przepusty rurowe
B69: M.01.00.00. | C69: Roboty przygotowawcze | D69: x | E69: x | F69: x | G69: x
B70: M.01.01.00. | C70: Obsługa geodezyjna budowy | D70: x | E70: x | F70: x | G70: x
A71: =A67+1 -> 35 | B71: M.01.01.01. | C71: Wytyczenie drogowego obiektu inżynierskiego | D71: kpl | E71: 83.00
B72: M.11.00.00. | C72: Fundamentowanie | D72: x | E72: x | F72: x | G72: x
B73: M.11.01.00. | C73: Roboty ziemne | D73: x | E73: x | F73: x | G73: x
A74: =A71+1 -> 36 | B74: M.11.01.03. | C74: Wykopy pod fundamenty w gruncie spoistym z czasowym zabezpieczeniem | D74: m3 | E74: 10,300.00
B75: M.11.01.05. | C75: Zasypanie wykopów fundamentowych oraz przestrzeni wokół przepustów wraz z zagęszczeniem | D75: x | E75: x | F75: x | G75: x
A76: =A74+1 -> 37 | C76: - podbudowa z pospółki gr. 15 cm | D76: m3 | E76: 1,650.00
A77: =A76+1 -> 38 | C77: - zasypka żwirowa przepustu | D77: m3 | E77: 7,910.00
B78: M.13.00.00. | C78: Beton | D78: x | E78: x | F78: x | G78: x
B79: M.13.01.00. | C79: Beton konstrukcyjny | D79: x | E79: x | F79: x | G79: x
A80: =A77+1 -> 39 | C80: - beton fundamentów przepustu C30/37 | D80: m3 | E80: 46.00
B81: M.15.00.00. | C81: Izolacje i nawierzchnie | D81: x | E81: x | F81: x | G81: x
B82: M.15.01.00. | C82: Izolacje i nawierzchnie na obiektach | D82: x | E82: x | F82: x | G82: x
A83: =A80+1 -> 40 | B83: M.15.01.03. | C83: Izolacje bitumiczne wykonywane na zimno | D83: m2 | E83: 185.50
B84: M.20.00.00. | C84: Inne roboty mostowe | D84: x | E84: x | F84: x | G84: x
A85: =A83+1 -> 41 | B85: M.20.01.03. | C85: Umocnienie stożków i skarp | D85: m2 | E85: 1,485.00
B86: M.20.01.06 | C86: Przepusty z rur PEHD | D86: x | E86: x | F86: x | G86: x
A87: =A85+1 -> 42 | C87: - przepusty z rur PEHD d=400mm | D87: m | E87: 624.65
A88: =A87+1 -> 43 | C88: - przepusty z rur PEHD d=600mm | D88: m | E88: 90.65
A89: =A88+1 -> 44 | C89: - przepusty z rur PEHD d=800mm | D89: m | E89: 389.60
A90: =A89+1 -> 45 | C90: - przepusty z rur PEHD d=1200mm | D90: m | E90: 66.00
A91: =A90+1 -> 46 | B91: M.20.01.10. | C91: Umocnienie dna i skarp cieku | D91: m2 | E91: 2,575.00
B92: M.21.00.00. | C92: Roboty rozbiórkowe i remontowe | D92: x | E92: x | F92: x | G92: x
B93: M.21.01.03. | C93: Rozbiórka elementów betonowych, żelbetowych i ceglanych | D93: x | E93: x | F93: x | G93: x
A94: =A91+1 -> 47 | C94: - rozbiórka przepustów z cegły | D94: m3 | E94: 57.00
A95: =A94+1 -> 48 | C95: - rozbiórka przepustów rurowych | D95: m | E95: 171.00
C96: Rozbiórka przepustów rurowych pod zjazdami | D96: x | E96: x | F96: x | G96: x
A97: =A95+1 -> 49 | C97: - przepusty z rur PEHD d=500mm | D97: m | E97: 238.77
A98: =A97+1 -> 50 | C98: - przepusty z rur PEHD d=600mm | D98: m | E98: 23.50
A99: =A98+1 -> 51 | C99: - przepusty z rur PEHD d=800mm | D99: m | E99: 154.40
A100: 52 | C100: - przepusty z rur PEHD d=1200mm | D100: m | E100: 66.00
B101: RAZEM ROBOTY INŻYNIERYJNE
B107: __________ | D107: ______________
B108: miejscowość, data | D108: podpis Wykonawcy

Sheet KD
A1: =DANE!B3 -> Aktualizacja i optymalizacja dokumentacji projektowej zadania wraz z pełnieniem nadzoru autorskiego podczas realizacji Inwestycji tj.: ”Rozbudowa drogi wojewódzkiej nr 548 Stolno-Wąbrzeźno od km 0+005 do km 29+619 z wyłączeniem węzła autostradowego w m. Lisewo od km 14+144 do km 15+146” Odcinek nr 1 – od km 0+005 do km 14+144
A2: Branża: | C2: BRANŻA SANITARNA 22.07
A3: Obiekt: | C3: Kanalizacja Deszczowa
A4: Kod CPV: | C4: 45000000-9 Roboty budowlane w zakresie wznoszenia kompletnych obiektów budowlanych lub ich części oraz roboty w zakresie inżynierii lądowej i wodnej
A5: Poz. | B5: Podstawa wyceny | C5: Wyszczególnienie elementu rozliczeniowego | D5: Jedn. | E5: Ilość jedn. | F5: Cena jedn. | G5: Wartość robót
B6: U.01.01.01 | C6: ODWODNIENIE KORPUSU DROGOWEGO | D6: x | E6: x | F6: x | G6: x
A7: 1 | B7: U.01.01.01 | C7: Budowa kanalizacji deszczowej | D7: x | E7: x | F7: x | G7: x
A8: 2 | B8: U.01.01.01 | C8: - ciąg główny kanalizacji | D8: x | E8: x | F8: x | G8: x
A9: 3 | B9: U.01.01.01 | C9: - wykonanie wykopów liniowych dla budowy kanałów głównych | D9: m3 | E9: 5,853.60
A10: 4 | B10: U.01.01.01 | C10: - pełne umocnienie pionowych ścian wykopów liniowych | D10: m2 | E10: 9,756.00
A11: 5 | B11: U.01.01.01 | C11: - podsypka piaskowa, grubości 10 cm | D11: m2 | E11: 234.14
A12: 6 | B12: U.01.01.01 | C12: - montaż kanałów z rur PCV d=200mm | D12: m | E12: 42.00
A13: 7 | B13: U.01.01.01 | C13: - montaż kanałów z rur PCV d=315mm | D13: m | E13: 500.00
A14: 8 | B14: U.01.01.01 | C14: - montaż kanałów z rur PCV d=400mm | D14: m | E14: 749.20
A15: 9 | B15: U.01.01.01 | C15: - montaż kanałów z rur PCV d=500mm | D15: m | E15: 372.00
A16: 10 | B16: U.01.01.01 | C16: - montaż kanałów z rur VIPRO d=600mm | D16: m | E16: 457.00
A17: 11 | B17: U.01.01.01 | C17: - montaż rurociągu tłocznego z rur PE d=400mm | D17: m | E17: 288.00
A18: 12 | B18: U.01.01.01 | C18: - obsypka piaskowa kanałów i rurociągów - 30cm nad wierzch rur | D18: m3 | E18: 1,613.57
A19: 13 | B19: U.01.01.01 | C19: - zasypanie wykopów liniowych z zagęszczeniem | D19: m3 | E19: 4,005.89
A20: 14 | B20: U.01.01.01 | C20: - wykonanie wykopów obiektowych dla zabudowy studni, pompowni, osadników | D20: m3 | E20: 2,052.00
A21: 15 | B21: U.01.01.01 | C21: - pełne umocnienie pionowych ścian wykopów obiektowych | D21: m2 | E21: 912.00
A22: 16 | B22: U.01.01.01 | C22: - zabudowa studni z kregów betonowych d=1200mm | D22: kpl | E22: 55.00
A23: 17 | B23: U.01.01.01 | C23: - zabudowa studni wpadowych z kregów betonowych d=1200mm | D23: kpl | E23: 2.00
A24: 18 | B24: U.01.01.01 | C24: - zabudowa studni z kregów betonowych d=1400mm | D24: kpl | E24: 12.00
A25: 19 | B25: U.01.01.01 | C25: - zabudowa studni wpadowych z kregów betonowych d=1400mm | D25: kpl | E25: 1.00
A26: 20 | B26: U.01.01.01 | C26: Studzienka rozprężna 1200 | D26: szt. | E26: 2.00
A27: 21 | B27: U.01.01.01 | C27: - zabudowa osadników d=1200mm | D27: kpl | E27: 2.00
A28: 22 | B28: U.01.01.01 | C28: - zabudowa osadników wirowych d=1500mm | D28: kpl | E28: 2.00
A29: 23 | B29: U.01.01.01 | C29: - zasypanie wykopów obiektowych z zagęszczeniem | D29: m3 | E29: 1,641.60
A30: 24 | B30: U.01.01.01 | C30: Regulacja włazów istniejących studzienek | D30: szt. | E30: 110.00
A31: 25 | B31: U.01.01.01 | C31: Wylot do rowy DN400 | D31: szt. | E31: 4.00
A32: 26 | B32: U.01.01.01 | C32: Wylot do rowy DN500 | D32: szt. | E32: 2.00
A33: 27 | B33: U.01.01.01 | C33: - przykanaliki i wpusty | D33: x | E33: x | F33: x | G33: x
A34: 28 | B34: U.01.01.01 | C34: - wykonanie wykopów liniowych dla budowy przykanalików | D34: m3 | E34: 2,570.40
A35: 29 | B35: U.01.01.01 | C35: - pełne umocnienie pionowych ścian wykopów liniowych | D35: m2 | E35: 4,284.00
A36: 30 | B36: U.01.01.01 | C36: - podsypka piaskowa, grubości 10 cm | D36: m2 | E36: 142.80
A37: 31 | B37: U.01.01.01 | C37: - montaż kanałów z rur PCV d=200mm SN8 | D37: m | E37: 1,362.00
A38: 32 | B38: U.01.01.01 | C38: - montaż kanałów z rur PCV d=200mm SN12 | D38: m | E38: 66.00
A39: 33 | B39: U.01.01.01 | C39: - obsypka piaskowa kanałów - 30cm nad wierzch rur | D39: m3 | E39: 714.00
A40: 34 | B40: U.01.01.01 | C40: - zasypanie wykopów liniowych z zagęszczeniem | D40: m3 | E40: 1,713.60
A41: 35 | B41: U.01.01.01 | C41: - zabudowa wpustów z prefabrykowanych elementów betonowych d=500mm | D41: kpl | E41: 249.00
A42: 36 | B42: U.01.01.01 | C42: demontarz istniejących wpustów DN500 | D42: kpl | E42: 29.00
A43: 37 | B43: U.01.01.01 | C43: Regulacja istniejących studzienek i wpustów | D43: x | E43: x | F43: x | G43: x
A44: 38 | B44: U.01.01.01 | C44: Regulacja istniejących włazów studzienek z wymianą pierścieni odciążających | D44: szt. | E44: 16.00
A45: 39 | B45: U.01.01.01 | C45: Regulacja istniejących wpustów | D45: szt. | E45: 163.00
A46: 40 | B46: U.01.01.01 | C46: Montaż rury osłonowej dwudzielnej DN315 | D46: m | E46: 124.50
A47: 41 | B47: U.01.01.01 | C47: Montaż rury osłonowej dwudzielnej DN400 | D47: m | E47: 9.35
A48: 42 | B48: U.01.01.01 | C48: Wposażenie pompowni P-1 wraz z rozruchem | D48: kpl | E48: 1.00
A49: 43 | B49: U.01.01.01 | C49: Wposażenie pompowni P-2 wraz z rozruchem | D49: kpl | E49: 1.00
B50: RAZEM KANALIZACJA DESZCZOWA
B56: ________________ | D56: ______________
B57: miejscowość, data | D57: podpis Wykonawcy

Sheet W
A1: =DANE!B3 -> Aktualizacja i optymalizacja dokumentacji projektowej zadania wraz z pełnieniem nadzoru autorskiego podczas realizacji Inwestycji tj.: ”Rozbudowa drogi wojewódzkiej nr 548 Stolno-Wąbrzeźno od km 0+005 do km 29+619 z wyłączeniem węzła autostradowego w m. Lisewo od km 14+144 do km 15+146” Odcinek nr 1 – od km 0+005 do km 14+144
A2: Branża: | C2: BRANŻA SANITARNA 22.07
A3: Obiekt: | C3: Wodociąg
A4: Kod CPV: | C4: 45000000-9 Roboty budowlane w zakresie wznoszenia kompletnych obiektów budowlanych lub ich części oraz roboty w zakresie inżynierii lądowej i wodnej
A5: Poz. | B5: Podstawa wyceny | C5: Wyszczególnienie elementu rozliczeniowego | D5: Jedn. | E5: Ilość jedn. | F5: Cena jedn. | G5: Wartość robót
B6: U.01.01.03 | C6: Przebudowa sieci wodociągowej | D6: x | E6: x | F6: x | G6: x
A7: 1 | B7: U.01.01.03 | C7: - wykopy liniowe dla budowy wodociągu z umocnieniem | D7: m3 | E7: 4,454.18
A8: 2 | B8: U.01.01.03 | C8: - podsypka piaskowa pod rurociągami gr. 10 cm | D8: m2 | E8: 247.45
A9: 3 | B9: U.01.01.03 | C9: - ułożenie rur osłonowych PE100 SDR17 Dz90 | D9: mb | E9: 37.30
A10: 4 | B10: U.01.01.03 | C10: - ułożenie rur osłonowych PE100 SDR17 Dz110 | D10: mb | E10: 222.23
A11: 5 | B11: U.01.01.03 | C11: - ułożenie rur osłonowych PE100 SDR17 Dz150 | D11: mb | E11: 10.50
A12: 6 | B12: U.01.01.03 | C12: - ułożenie rur osłonowych PE100 SDR17 Dz225 | D12: mb | E12: 104.70
A13: 7 | B13: U.01.01.03 | C13: - ułożenie rur osłonowych PE100 SDR17 Dz250 | D13: mb | E13: 310.90
A14: 8 | B14: U.01.01.03 | C14: - ułożenie rur osłonowych PE100 SDR17 Dz315 | D14: mb | E14: 83.20
A15: 9 | B15: U.01.01.03 | C15: - montaż rurociagów z rur PEHD SDR11 PN16 Dz40 | D15: mb | E15: 149.11
A16: 10 | B16: U.01.01.03 | C16: - montaż rurociagów z rur PEHD SDR11 PN16 Dz50 | D16: mb | E16: 241.59
A17: 11 | B17: U.01.01.03 | C17: - montaż rurociagów z rur PEHD SDR11 PN16 Dz75 | D17: mb | E17: 11.18
A18: 12 | B18: U.01.01.03 | C18: - montaż rurociagów z rur PEHD SDR11 PN16 Dz90 | D18: mb | E18: 198.74
A19: 2252 | B19: U.01.01.03 | C19: - montaż rurociagów z rur PEHD SDR11 PN16 Dz110 | D19: mb | E19: 2,252.60
A20: 14 | B20: U.01.01.03 | C20: - montaż rurociagów z rur PEHD SDR11 PN16 Dz160 | D20: mb | E20: 239.96
A21: 15 | B21: U.01.01.03 | C21: - montaż zasuw żeliwnych, kołnierzowych Dn50 z obudowa teleskopową, z skrzynką do zasuw | D21: szt | E21: 13.00
A22: 16 | B22: U.01.01.03 | C22: - montaż zasuw żeliwnych, kołnierzowych Dn80 z obudowa teleskopową, z skrzynką do zasuw | D22: szt | E22: 6.00
A23: 17 | B23: U.01.01.03 | C23: - montaż zasuw żeliwnych, kołnierzowych Dn100 z obudowa teleskopową, z skrzynką do zasuw | D23: szt | E23: 33.00
A24: 18 | B24: U.01.01.03 | C24: - montaż zasuw żeliwnych, kołnierzowych Dn150 z obudowa teleskopową, z skrzynką do zasuw | D24: szt | E24: 7.00
A25: 19 | B25: U.01.01.03 | C25: - montaż hydrantów nadziemnych, żeliwnych z zasuwą Dn80 | D25: szt | E25: 17.00
A26: 20 | B26: U.01.01.03 | C26: - montaż hydrantów podziemnych, żeliwnych z zasuwą Dn80 | D26: szt | E26: 1.00
A27: 21 | B27: U.01.01.03 | C27: - zabudowa studzienki wodomierzowej, d=1200mm kompletnie wyposażonej | D27: kpl | E27: 1.00
A28: 22 | B28: U.01.01.03 | C28: - próba szczelności sieci wodociagowej | D28: mb | E28: 3,093.18
A29: 23 | B29: U.01.01.03 | C29: - płukanie i dezynfekcja wodociagu | D29: mb | E29: 3,093.18
A30: 24 | B30: U.01.01.03 | C30: - obsypka piaskowa rurociagów - 30cm nad wierzch rury | D30: m3 | E30: 989.82
A31: 25 | B31: U.01.01.03 | C31: - zasypanie wykopów z zagęszczeniem | E31: 3,439.62
A32: 26 | B32: U.01.01.03 | C32: - demontaż istniejących sieci wodociągowych wraz z armaturą | D32: mb | E32: 1,850.00
A33: 27 | B33: U.01.01.03 | C33: Regulacja istniejących skrzynek armatury | D33: szt | E33: 45.00
B34: RAZEM WODOCIĄG | G34: =SUM(G7:G33) -> 0.00
B40: ________________ | D40: ______________
B41: miejscowość, data | D41: podpis Wykonawcy

Sheet Teletechnika
A1: =DANE!B3 -> Aktualizacja i optymalizacja dokumentacji projektowej zadania wraz z pełnieniem nadzoru autorskiego podczas realizacji Inwestycji tj.: ”Rozbudowa drogi wojewódzkiej nr 548 Stolno-Wąbrzeźno od km 0+005 do km 29+619 z wyłączeniem węzła autostradowego w m. Lisewo od km 14+144 do km 15+146” Odcinek nr 1 – od km 0+005 do km 14+144
A2: Branża: | C2: BRANŻA TELETECHNICZNA 22.07
A3: Obiekt: | C3: Teletechnika
A4: Kod CPV: | C4: 45000000-9 Roboty budowlane w zakresie wznoszenia kompletnych obiektów budowlanych lub ich części oraz roboty w zakresie inżynierii lądowej i wodnej
A5: Poz. | B5: Podstawa wyceny | C5: Wyszczególnienie elementu rozliczeniowego | D5: Jedn. | E5: Ilość jedn. | F5: Cena jedn. | G5: Wartość robót
A6: * | B6: T.01.01.01. | C6: Przebudowa sieci telekomunikacyjnych
A7: 1 | C7: Sieć miejscowa | D7: * | E7: * | F7: * | G7: *
A8: =A7+1 -> 2 | C8: studnia kablowa SK-6 kompletna (kolumny wspornikowe, wsporniki dwukablowe-metalowe) z ramą z kołnierzem betonowym typ ciężki, pokrywą typu ciężkiego ryglowaną | D8: szt. | E8: 1.00
A9: 3 | C9: studnia kablowa SKR-2 kompletna (kolumny wspornikowe, wsporniki dwukablowe-metalowe) z ramą z kołnierzem betonowym typ ciężki, pokrywą typu ciężkiego ryglowaną | D9: szt. | E9: 2.00
A10: 4 | C10: studnia kablowa SK-2 kompletna (kolumny wspornikowe, wsporniki dwukablowe-metalowe) z ramą z kołnierzem betonowym typ ciężki, pokrywą typu ciężkiego ryglowaną | D10: szt. | E10: 2.00
A11: 5 | C11: studnia kablowa SKR-1 kompletna (kolumny wspornikowe, wsporniki dwukablowe-metalowe) z ramą z kołnierzem betonowym typ ciężki, pokrywą typu ciężkiego oraz pokrywą typu ciężkiego ryglowaną | D11: szt. | E11: 3.00
A12: 6 | C12: regulacja wysokościowa studni kablowych | D12: szt. | E12: 15.00
A13: 7 | C13: rura ochronna HDPE Ø110/25 | D13: m | E13: 90.00
A14: 8 | C14: kanalizacja kablowa 2-otworowa rurami HDPE Ø110/6,3 | D14: m | E14: 91.00
A15: 9 | C15: kanalizacja kablowa 4-otworowa rurami HDPE Ø110/6,3 | D15: m | E15: 66.00
A16: 10 | C16: kanalizacja kablowa 2-otworowa rurami HDPE Ø125/7,1 | D16: m | E16: 39.00
A17: 11 | C17: rura ochronna (1x)HDPE Ø160/9,1 | D17: m | E17: 141.00
A18: 12 | C18: rura ochronna (2x)HDPE Ø160/9,1 | D18: m | E18: 7.00
A19: 13 | C19: rura ochronna (1x)HDPE Ø40/3,7 | D19: m | E19: 10.00
A20: 14 | C20: rura ochronna (2x)HDPE Ø40/3,7 | D20: m | E20: 960.00
A21: 15 | C21: rura ochronna dzielona (1x)HDPE Ø160/141 | D21: m | E21: 1,454.00
A22: 16 | C22: rura ochronna dzielona (2x)HDPE Ø160/141 | D22: m | E22: 29.00
A23: 17 | C23: rura ochronna dzielona (4x)HDPE Ø160/141 | D23: m | E23: 340.00
A24: 18 | C24: Ława betonowa z betonu żwirowego klasy co najmniej B 20 o grubości minimum 15 cm i o szerokości min 100 cm | D24: m | E24: 340.00
A25: 19 | C25: słup pojedynczy, uszczudlony | D25: szt. | E25: 22.00
A26: 20 | C26: słup bliźniaczy, uszczudlony | D26: szt. | E26: 6.00
A27: 21 | C27: słup A-owy uszczudlony | D27: szt. | E27: 1.00
A28: 22 | C28: słupek rozdzielczy HDPE 30p | D28: szt. | E28: 1.00
A29: 23 | C29: przełożenie kabli linii napowietrznej - kabel o żyłach metalowych - wraz ze wszystkimi robotami towarzyszącymi i z kompletem osprzętu | D29: m | E29: 2,112.00
A30: 24 | C30: przełożenie kabla linii napowietrznej - kabel światłowodowy - wraz ze wszystkimi robotami towarzyszącymi i kompletem osprzętu | D30: m | E30: 1,500.00
A31: 25 | C31: skrzynka kablowa 30p | D31: szt. | E31: 1.00
A32: 26 | C32: skrzynka kablowa 10p | D32: szt. | E32: 1.00
A33: 27 | C33: przewód DGs/SID 1,5 mm² 300/500 V | D33: m | E33: 2.00
A34: 28 | C34: uziom szpilkowy 3 m | D34: szt. | E34: 7.00
A35: 29 | C35: przełożenie kabla ziemnego | D35: m | E35: 42.00
A36: 30 | C36: budowa kabla XzTKMXpw 10x2x0,5 ze złączami | D36: m | E36: 90.00
A37: 31 | C37: budowa kabla XzTKMXpw 5x4x0,6 ze złączami | D37: m | E37: 610.00
A38: 32 | C38: budowa kabla XzTKMXpw 10x4x0,5 ze złączami | D38: m | E38: 100.00
A39: 33 | C39: budowa kabla XzTKMXpw 15x4x0,5 ze złączami | D39: m | E39: 428.00
A40: 34 | C40: budowa kabla XzTKMXpw 35x4x0,8 ze złączami | D40: m | E40: 190.00
A41: 35 | C41: budowa kabla XzTKMXpw 50x4x0,5 ze złączami | D41: m | E41: 213.00
A42: 36 | C42: budowa kabla XzTKMXpw 50x4x0,8 ze złączami | D42: m | E42: 277.00
A43: 37 | C43: budowa kabla XzTKMXpw 100x4x0,5 ze złączami | D43: m | E43: 1,210.00
A44: 38 | C44: budowa kabla XzTKMXpw 200x4x0,5 ze złączami | D44: m | E44: 1,110.00
A45: 39 | C45: budowa kabla TKD 56x2x1,2 ze złączami | D45: m | E45: 275.00
A46: 40 | C46: budowa kabla napowietrznego XzTKMXpwn 5x4x0,5 ze złączami | D46: m | E46: 82.00
A47: 41 | C47: budowa kabla napowietrznego XzTKMXpwn 3x2x0,5 ze złączami | D47: m | E47: 40.00
A48: 42 | C48: rozbiórka studni kablowej | D48: szt. | E48: 3.00
A49: 43 | C49: rozbiórka słupa telekomunikacyjnego | D49: szt. | E49: 28.00
A50: 44 | C50: demontaż kabla kanałowego | D50: m | E50: 350.00
A51: 45 | C51: demontaż kabla napowietrznego | D51: m | E51: 600.00
A52: 46 | C52: pomiary w trakcie robót i pomontażowe na kablach o żyłach metalowych | D52: kpl. | E52: 1.00
A53: =A50+1 -> 45 | C53: pozyskanie warunków technicznych i uzgodnień przebudów sieci telekomunikacyjnych z właścicielami sieci na własny koszt (tych które wymagają nowych uzgodnień), | D53: kpl. | E53: 1.00
A54: =A51+1 -> 46 | C54: pozyskania przez wykonawcę wywiadów branżowych pod kątem zweryfikowania czy nie powstały nowe sieci na własny koszt | D54: kpl. | E54: 1.00
A55: =A52+1 -> 47 | C55: nadzory właścicielskie | D55: kpl. | E55: 1.00
A56: 48 | C56: budowa kabla światłowodowego Z-XOTKtsd 48J | D56: m | E56: 1,460.00
A57: 49 | C57: kanalizacja wtórna 2xHDPE ∅32/2,9 | D57: m | E57: 94.00
A58: 50 | C58: zasobnik ZK-1 | D58: szt. | E58: 6.00
A59: 51 | C59: osłona złączowa kompletna FOSC-400-B4-S24-3 | D59: szt. | E59: 2.00
A60: 52 | C60: osłona złączowa kompletna FOSC-400-B4-S24-4 | D60: szt. | E60: 1.00
A61: 53 | C61: skrzynia zapasu STZK-60 | D61: szt. | E61: 1.00
A62: 54 | C62: budowa mikrokanalizacji podziemnej HDPE 4x14/10mm wraz ze złączkami i uszczelniaczami | D62: m | E62: 134.00
A63: 55 | C63: pomiary w trakcie robót i pomontażowe na kablach światłowodwych | D63: kpl. | E63: 1.00
A64: 56 | C64: przełożenie kabla światłowodowego kanałowego | D64: m | E64: 219.00
A65: 57 | C65: demontaż kabla światłowodowego | D65: m | E65: 1,500.00
A66: WARTOŚĆ KOSZTORYSU NETTO: | G66: =SUM(G8:G65) -> 0.00 zł
B70: ________________ | D70: ______________
B71: miejscowość, data | D71: podpis Wykonawcy

Sheet En
A1: =DANE!B3 -> Aktualizacja i optymalizacja dokumentacji projektowej zadania wraz z pełnieniem nadzoru autorskiego podczas realizacji Inwestycji tj.: ”Rozbudowa drogi wojewódzkiej nr 548 Stolno-Wąbrzeźno od km 0+005 do km 29+619 z wyłączeniem węzła autostradowego w m. Lisewo od km 14+144 do km 15+146” Odcinek nr 1 – od km 0+005 do km 14+144
A2: Branża: | C2: BRANŻA ELEKTROENERGETYCZNA 22.07
A3: Obiekt: | C3: Przebudowa sieci elektroenergetycznych
A4: Kod CPV: | C4: 45000000-9 Roboty budowlane w zakresie wznoszenia kompletnych obiektów budowlanych lub ich części oraz roboty w zakresie inżynierii lądowej i wodnej
A5: Poz. | B5: Podstawa wyceny | C5: Wyszczególnienie elementu rozliczeniowego | D5: Jedn. | E5: Ilość jedn. | F5: Cena jedn. | G5: Wartość robót
B6: U.01.03.01a | C6: Przebudowa soieci energetycznych nN przy przebudowie dróg | D6: x | E6: x | F6: x | G6: x
A7: 1. | C7: Zabudowa kompletnego stanowiska słupowego nN typu N3-12/10 (E) wraz z fundamentem oraz uzbrojeniem zgodnie z dokumentacją projektową | D7: kpl. | E7: 5.00
A8: 2. | C8: Zabudowa kompletnego stanowiska słupowego nN typu O-12/12 (E) wraz z fundamentem oraz uzbrojeniem zgodnie z dokumentacją projektową | D8: kpl. | E8: 2.00
A9: 3. | C9: Zabudowa kompletnego stanowiska słupowego nN typu O-12/15 (E) wraz z fundamentem oraz uzbrojeniem zgodnie z dokumentacją projektową | D9: kpl. | E9: 1.00
A10: 4. | C10: Zabudowa kompletnego stanowiska słupowego nN typu P-12/4,3 (E) wraz z fundamentem oraz uzbrojeniem zgodnie z dokumentacją projektową | D10: kpl. | E10: 1.00
A11: 5. | C11: Zabudowa kompletnego stanowiska słupowego nN typu K-12/15 (E) wraz z fundamentem oraz uzbrojeniem zgodnie z dokumentacją projektową | D11: kpl. | E11: 2.00
A12: 6. | C12: Zabudowa kompletnego stanowiska słupowego nN typu RPK-12/10 (E) wraz z fundamentem oraz uzbrojeniem zgodnie z dokumentacją projektową | D12: kpl. | E12: 1.00
A13: 7. | C13: Zabudowa kompletnego stanowiska słupowego nN typu RNK-12/10 (E) wraz z fundamentem oraz uzbrojeniem zgodnie z dokumentacją projektową | D13: kpl. | E13: 1.00
A14: 8. | C14: Zabudowa przewodu typu AsXSn 4x50 zgodnie z dokumentacją projektową | D14: mb | E14: 543.00
A15: 9. | C15: Zabudowa przewodu typu AsXSn 4x25 zgodnie z dokumentacją projektową | D15: mb | E15: 531.00
A16: 10. | C16: Zabudowa przewodu typu AsXSn 2x25 zgodnie z dokumentacją projektową | D16: mb | E16: 305.00
A17: 11. | C17: Istniejące przewody 4xAL 50+25 do przewieszenia na nowe słupy zgodnie z dokumentacją projektową | D17: mb | E17: 156.00
A18: 12. | C18: Istniejące przewody AsXSn 4x70 do przewieszenia na nowe słupy zgodnie z dokumentacją projektową | D18: mb | E18: 50.00
A19: 13. | C19: Istniejące przewody AsXSn 4x25 do przewieszenia na nowe słupy zgodnie z dokumentacją projektową | D19: mb | E19: 90.00
A20: 14. | C20: Zabudowa kabla nN YAKXS 4x120 zgodnie z dokumentacją projektową | D20: mb | E20: 80.00
A21: 15. | C21: Zabudowa kabla nN YAKXS 4x70 zgodnie z dokumentacją projektową | D21: mb | E21: 65.00
A22: 16. | C22: Zabudowa kabla nN YAKXS 4x35 zgodnie z dokumentacją projektową | D22: mb | E22: 70.00
A23: 17. | C23: Zabudowa mufy kablowej nN POLJ-01/25-70 zgodnie z dokumentacją projektową | D23: kpl. | E23: 4.00
A24: 18. | C24: Zabudowa mufy kablowej nN POLJ-01/70-120 zgodnie z dokumentacją projektową | D24: kpl. | E24: 3.00
A25: 19. | C25: Zabudowa ograniczników przepięć typu ASA-0,66/5kA | D25: kpl. | E25: 30.00
A26: 20. | C26: Zabudowa zejścia kablem ze słupa (rura UV fi 75, uchwyty, opaski, zaciski, termokurcze, itp.) zgodnie z dokumentacją proejktową | D26: kpl. | E26: 7.00
A27: 21. | C27: Wykonanie przewiertu sterowanego rurą SRS-G 110 | D27: mb | E27: 58.00
A28: 22. | C28: Zabudowa rury ochronnej SRS 110 zgodnie z dokumentacją projektową | D28: mb | E28: 40.00
A29: 23. | C29: Wykonanie zabezpieczenia istniejących kabli nN rurą A110PS zgodnie z dokumentacja projektową | D29: mb | E29: 150.00
A30: 24. | C30: Wykonanie zabezpieczenia istniejących kabli SN rurą A160PS zgodnie z dokumentacja projektową | D30: mb | E30: 45.00
A31: 25. | C31: Zabudowa uziomu pogrążalnego stalowego ocynkowanego fi 20, l=2x15m (R<10Ω) | D31: kpl. | E31: 8.00
A32: 26. | C32: Zabudowa uziomu pogrążalnego stalowego ocynkowanego fi 20, l=15m (R<30Ω) | D32: kpl. | E32: 5.00
A33: 27. | C33: Regulacja studni kablowej | D33: kpl. | E33: 1.00
A34: 28. | C34: Demontaż słupów linii napowietrznej | D34: kpl. | E34: 12.00
A35: 29. | C35: Demontaż linii napowietrznej nN | D35: mb | E35: 800.00
A36: 30. | C36: Demontaż opraw oświetlenia ulicznego | D36: kpl. | E36: 40.00
A37: 31. | C37: Demontaż linii kablowej nN | D37: mb | E37: 250.00
B43: ________________ | D43: ______________
B44: miejscowość, data | D44: podpis Wykonawcy

Sheet Os
A1: =DANE!B3 -> Aktualizacja i optymalizacja dokumentacji projektowej zadania wraz z pełnieniem nadzoru autorskiego podczas realizacji Inwestycji tj.: ”Rozbudowa drogi wojewódzkiej nr 548 Stolno-Wąbrzeźno od km 0+005 do km 29+619 z wyłączeniem węzła autostradowego w m. Lisewo od km 14+144 do km 15+146” Odcinek nr 1 – od km 0+005 do km 14+144
A2: Branża: | C2: BRANŻA ELEKTROENERGETYCZNA 22.07
A3: Obiekt: | C3: Budowa Oświetlenia Drogowego
A4: Kod CPV: | C4: 45000000-9 Roboty budowlane w zakresie wznoszenia kompletnych obiektów budowlanych lub ich części oraz roboty w zakresie inżynierii lądowej i wodnej
A5: Poz. | B5: Podstawa wyceny | C5: Wyszczególnienie elementu rozliczeniowego | D5: Jedn. | E5: Ilość jedn. | F5: Cena jedn. | G5: Wartość robót
B6: U.07.07.01 | C6: Oświetlenie uliczne | D6: x | E6: x | F6: x | G6: x
A7: Budowa oświetlenia drogowego w m. Stolno od km 0+000 do km 0+385
A8: 1. | C8: - zabudowa szafy oświetlenia ulicznego SOU-3 zgodnie z dokumentacją projektową | D8: kpl | E8: 1.00
A9: 2. | C9: - zabudowa słupów aluminiowych, anodowanych na kolor naturalnego aluminium o wysokości do oprawy h=10m i wysiegniku 1m o kącie 5 stopni wraz z fundamentem prefabrykowanym zgodnie z dokumentacją projektową | D9: kpl | E9: 13.00
A10: 3. | C10: - zabudowa słupów aluminiowych, anodowanych na kolor naturalnego aluminium o wysokości do oprawy h=5,5m i wysiegniku 2,5m o kącie 5 stopni wraz z fundamentem prefabrykowanym zgodnie z dokumentacją projektową | D10: kpl | E10: 1.00
A11: 4. | C11: - zabudowa słupów aluminiowych, anodowanych na kolor naturalnego aluminium o wysokości do oprawy h=5,5m i wysiegniku 1,5m o kącie 5 stopni wraz z fundamentem prefabrykowanym zgodnie z dokumentacją projektową | D11: kpl | E11: 1.00
A12: 5. | C12: - zabudowa opraw oświetleniowych LED 79W, 4000K z optyką T2 zgodnie z dokumentacją projektową | D12: kpl | E12: 10.00
A13: 6. | C13: - zabudowa opraw oświetleniowych LED 67W, 4000K z optyką T2 zgodnie z dokumentacją projektową | D13: kpl | E13: 2.00
A14: 7. | C14: - zabudowa opraw oświetleniowych LED 55W, 4000K z optyką T2 zgodnie z dokumentacją projektową | D14: kpl | E14: 1.00
A15: 8. | C15: - zabudowa opraw oświetleniowych LED 86W, 6000K P asymetrycznych zgodnie z dokumentacją projektową | D15: kpl | E15: 2.00
A16: 9. | C16: - zabudowa kabla YAKXS 4x35 zgodnie z dokumentacja projektową | D16: mb | E16: 499.00
A17: 10. | C17: - zabudowa bednarki FeZn30x4 zgodnie z dokumentacja projektową | D17: mb | E17: 499.00
A18: 11. | C18: - wykonanie przewiertów/przecisków rurą np. typu SRS-G 110 zgodnie z dokumentacja projektową | D18: mb | E18: 58.00
A19: 12. | C19: - zabudowa rur ochronncyh np. typu SRS 110 zgodnie z dokumentacja projektową | D19: mb | E19: 22.00
A20: 13. | C20: - zabudowa rur ochronncyh np. typu DVK 110 zgodnie z dokumentacja projektową | D20: mb | E20: 47.00
A21: 14. | C21: - zabudowa złącza słupowego/tabliczki słupowej zgodnie z dokumentacja projektową | D21: kpl. | E21: 15.00
A22: 15. | C22: - zabudowa uziomu stalowego ocynkowanego pogrążalnego fi 20, l=2x12m (R<10Ω) zgodnie z dokumentacja projektową | D22: kpl. | E22: 1.00
A23: 16. | C23: - zabudowa uziomu stalowego ocynkowanego pogrążalnego fi 20, l=12m (R<30Ω) zgodnie z dokumentacja projektową | D23: kpl. | E23: 2.00
A24: 17. | C24: - zabudowa przewodu w słupie typu YDYżo 3x2,5 zgodnie z dokumentacja projektową | D24: mb | E24: 170.00
A25: 18. | C25: - wykonanie pomiarów elektrycznych powykonawczych | D25: kpl. | E25: 1.00
A26: 19. | C26: - wykonanie pomiarówfotometrycznych powykonawczych | D26: kpl. | E26: 1.00
A27: 20. | C27: - obsługa geodezyjna | D27: kpl. | E27: 1.00
A28: 21. | C28: - demontż istniejącego punktu oświetleniowego kompletnie wyposażonego typu P/ŻN-10 wraz z oprawą | D28: kpl | E28: 1.00
A29: 22. | C29: - demontż istniejącego punktu oświetleniowego kompletnie wyposażonego typu PB/ŻN-10 wraz z oprawą | D29: kpl | E29: 1.00
A30: 23. | C30: - demontaż przewodu napowietrznego AsXSn 2x25 | D30: mb | E30: 86.00
B31: RAZEM | G31: =SUM(G8:G27) -> 0.00
A32: Przebudowa oświetlenia drogowego w m. Stolno w km 1+065
A33: 1. | C33: - demontż istniejącego punktu oświetleniowego kompletnie wyposażonego typu OŻ-10 wraz z oprawą | D33: kpl | E33: 1.00
A34: 2. | C34: - zabudowa punktu oświetleniowego z demontażu kompletnie wyposażonego typu OŻ-10 wraz z oprawą | D34: kpl | E34: 1.00
A35: 3. | C35: - demontaż linii kablowej YAKY 4x35 | D35: mb | E35: 3.00
A36: 4. | C36: - wykonanie pomiarów elektrycznych powykonawczych | D36: kpl. | E36: 1.00
A37: 5. | C37: - obsługa geodezyjna | D37: kpl. | E37: 1.00
B38: RAZEM | G38: =SUM(G33:G37) -> 0.00
A39: Budowa oświetlenia drogowego w m. Cepno od km 1+910 do km 2+975
A40: 1. | C40: - zabudowa szafy oświetlenia ulicznego SOU-3 zgodnie z dokumentacją projektową | D40: kpl | E40: 1.00
A41: 2. | C41: - zabudowazłacza kablowo - pomiarowego z demontażu zgodnie z dokumentacją projektową | D41: kpl | E41: 1.00
A42: 3. | C42: - zabudowa słupów aluminiowych, anodowanych na kolor naturalnego aluminium o wysokości do oprawy h=10m i wysiegniku 2,5m o kącie 5 stopni wraz z fundamentem prefabrykowanym zgodnie z dokumentacją projektową | D42: kpl | E42: 2.00
A43: 4. | C43: - zabudowa słupów aluminiowych, anodowanych na kolor naturalnego aluminium o wysokości do oprawy h=10m i wysiegniku 1m o kącie 5 stopni wraz z fundamentem prefabrykowanym zgodnie z dokumentacją projektową | D43: kpl | E43: 30.00
A44: 5. | C44: - zabudowa słupów aluminiowych, anodowanych na kolor naturalnego aluminium o wysokości do oprawy h=5,5m i wysiegniku 2,5m o kącie 5 stopni wraz z fundamentem prefabrykowanym zgodnie z dokumentacją projektową | D44: kpl | E44: 3.00
A45: 6. | C45: - zabudowa słupów aluminiowych, anodowanych na kolor naturalnego aluminium o wysokości do oprawy h=5,5m i wysiegniku 1,5m o kącie 5 stopni wraz z fundamentem prefabrykowanym zgodnie z dokumentacją projektową | D45: kpl | E45: 1.00
A46: 7. | C46: - zabudowa opraw oświetleniowych LED 105W, 4000K z optyką DW zgodnie z dokumentacją projektową | D46: kpl | E46: 4.00
A47: 8. | C47: - zabudowa opraw oświetleniowych LED 79W, 4000K z optyką T2 zgodnie z dokumentacją projektową | D47: kpl | E47: 23.00
A48: 9. | C48: - zabudowa opraw oświetleniowych LED 67W, 4000K z optyką T2 zgodnie z dokumentacją projektową | D48: kpl | E48: 3.00
A49: 10. | C49: - zabudowa opraw oświetleniowych LED 55W, 4000K z optyką T2 zgodnie z dokumentacją projektową | D49: kpl | E49: 2.00
A50: 11. | C50: - zabudowa opraw oświetleniowych LED 86W, 6000K P asymetrycznych zgodnie z dokumentacją projektową | D50: kpl | E50: 4.00
A51: 12. | C51: - zabudowa kabla YAKXS 4x35 zgodnie z dokumentacja projektową | D51: mb | E51: 1373.00
A52: 13. | C52: - zabudowa bednarki FeZn30x4 zgodnie z dokumentacja projektową | D52: mb | E52: 1373.00
A53: 14. | C53: - wykonanie przewiertów/przecisków rurą np. typu SRS-G 110 zgodnie z dokumentacja projektową | D53: mb | E53: 94.00
A54: 15. | C54: - zabudowa rur ochronncyh np. typu SRS 110 zgodnie z dokumentacja projektową | D54: mb | E54: 72.00
A55: 16. | C55: - zabudowa rur ochronncyh np. typu DVK 110 zgodnie z dokumentacja projektową | D55: mb | E55: 136.00
A56: 17. | C56: - zabudowa złącza słupowego/tabliczki słupowej zgodnie z dokumentacja projektową | D56: kpl. | E56: 36.00
A57: 18. | C57: - zabudowa uziomu stalowego ocynkowanego pogrążalnego fi 20, l=2x12m (R<10Ω) zgodnie z dokumentacja projektową | D57: kpl. | E57: 1.00
A58: 19. | C58: - zabudowa uziomu stalowego ocynkowanego pogrążalnego fi 20, l=12m (R<30Ω) zgodnie z dokumentacja projektową | D58: kpl. | E58: 3.00
A59: 20. | C59: - zabudowa przewodu w słupie typu YDYżo 3x2,5 zgodnie z dokumentacja projektową | D59: mb | E59: 412.00
A60: 21. | C60: - wykonanie pomiarów elektrycznych powykonawczych | D60: kpl. | E60: 1.00
A61: 22. | C61: - wykonanie pomiarówfotometrycznych powykonawczych | D61: kpl. | E61: 1.00
A62: 23. | C62: - obsługa geodezyjna | D62: kpl. | E62: 1.00
A63: 24. | C63: - demontż istniejącego złącza kablowo-pomiarowego | D63: kpl | E63: 1.00
A64: 25. | C64: - demontż istniejącego punktu oświetleniowego kompletnie wyposażonego typu WZ-10 wraz z oprawą | D64: kpl | E64: 4.00
A65: 26. | C65: - demontaż linii kablowej YAKY 4x35 | D65: mb | E65: 135.00
B66: RAZEM | G66: =SUM(G40:G65) -> 0.00
A67: Budowa oświetlenia drogowego w m. Kamlarki i m. Krusin od km 6+835 do km 8+330
A68: 1. | C68: - zabudowa szafy oświetlenia ulicznego SOU-3 zgodnie z dokumentacją projektową | D68: kpl | E68: 1.00
A69: 2. | C69: - zabudowa słupów aluminiowych, anodowanych na kolor naturalnego aluminium o wysokości do oprawy h=10m i wysiegniku 2,5m o kącie 5 stopni wraz z fundamentem prefabrykowanym zgodnie z dokumentacją projektową | D69: kpl | E69: 35.00
A70: 3. | C70: - zabudowa słupów aluminiowych, anodowanych na kolor naturalnego aluminium o wysokości do oprawy h=10m i wysiegniku 1m o kącie 5 stopni wraz z fundamentem prefabrykowanym zgodnie z dokumentacją projektową | D70: kpl | E70: 20.00
A71: 4. | C71: - zabudowa słupów aluminiowych, anodowanych na kolor naturalnego aluminium o wysokości do oprawy h=5,5m i wysiegniku 2,5m o kącie 5 stopni wraz z fundamentem prefabrykowanym zgodnie z dokumentacją projektową | D71: kpl | E71: 6.00
A72: 5. | C72: - zabudowa słupów aluminiowych, anodowanych na kolor naturalnego aluminium o wysokości do oprawy h=5,5m i wysiegniku 1,5m o kącie 5 stopni wraz z fundamentem prefabrykowanym zgodnie z dokumentacją projektową | D72: kpl | E72: 5.00
A73: 6. | C73: - zabudowa słupów aluminiowych, anodowanych na kolor naturalnego aluminium o wysokości do oprawy h=5,5m i wysiegniku 1m o kącie 5 stopni wraz z fundamentem prefabrykowanym zgodnie z dokumentacją projektową | D73: kpl | E73: 1.00
A74: 7. | C74: - zabudowa opraw oświetleniowych LED 105W, 4000K z optyką DW zgodnie z dokumentacją projektową | D74: kpl | E74: 16.00
A75: 8. | C75: - zabudowa opraw oświetleniowych LED 79W, 4000K z optyką T2 zgodnie z dokumentacją projektową | D75: kpl | E75: 28.00
A76: 9. | C76: - zabudowa opraw oświetleniowych LED 67W, 4000K z optyką T2 zgodnie z dokumentacją projektową | D76: kpl | E76: 6.00
A77: 10. | C77: - zabudowa opraw oświetleniowych LED 55W, 4000K z optyką T2 zgodnie z dokumentacją projektową | D77: kpl | E77: 5.00
A78: 11. | C78: - zabudowa opraw oświetleniowych LED 86W, 6000K P asymetrycznych zgodnie z dokumentacją projektową | D78: kpl | E78: 12.00
A79: 12. | C79: - zabudowa kabla YAKXS 4x35 zgodnie z dokumentacja projektową | D79: mb | E79: 2331.00
A80: 13. | C80: - zabudowa bednarki FeZn30x4 zgodnie z dokumentacja projektową | D80: mb | E80: 2331.00
A81: 14. | C81: - wykonanie przewiertów/przecisków rurą np. typu SRS-G 110 zgodnie z dokumentacja projektową | D81: mb | E81: 126.00
A82: 15. | C82: - zabudowa rur ochronncyh np. typu SRS 110 zgodnie z dokumentacja projektową | D82: mb | E82: 162.00
A83: 16. | C83: - zabudowa rur ochronncyh np. typu DVK 110 zgodnie z dokumentacja projektową | D83: mb | E83: 191.00
A84: 17. | C84: - zabudowa złącza słupowego/tabliczki słupowej zgodnie z dokumentacja projektową | D84: kpl. | E84: 67.00
A85: 18. | C85: - zabudowa uziomu stalowego ocynkowanego pogrążalnego fi 20, l=2x12m (R<10Ω) zgodnie z dokumentacja projektową | D85: kpl. | E85: 1.00
A86: 19. | C86: - zabudowa uziomu stalowego ocynkowanego pogrążalnego fi 20, l=12m (R<30Ω) zgodnie z dokumentacja projektową | D86: kpl. | E86: 8.00
A87: 20. | C87: - zabudowa przewodu w słupie typu YDYżo 3x2,5 zgodnie z dokumentacja projektową | D87: mb | E87: 744.00
A88: 21. | C88: - wykonanie pomiarów elektrycznych powykonawczych | D88: kpl. | E88: 1.00
A89: 22. | C89: - wykonanie pomiarów fotometrycznych powykonawczych | D89: kpl. | E89: 1.00
A90: 23. | C90: - obsługa geodezyjna | D90: kpl. | E90: 1.00
A91: 24. | C91: - demontż istniejącej szafki oświetleniowej ze słupa EOC | D91: kpl | E91: 1.00
A92: 25. | C92: - demontż istniejącego punktu oświetleniowego kompletnie wyposażonego typu EOC-10,5/2,5 wraz z oprawą | D92: kpl | E92: 4.00
A93: 26. | C93: - demontaż przewodu napowietrznego AsXSn 2x25 | D93: mb | E93: 128.00
B94: RAZEM | G94: =SUM(G68:G93) -> 0.00
A95: Budowa oświetlenia drogowego w m. Lisewo od km 10+325 do km 10+895
A96: 1. | C96: - zabudowa szafy oświetlenia ulicznego SOU-3 zgodnie z dokumentacją projektową | D96: kpl | E96: 1.00
A97: 2. | C97: - zabudowa słupów aluminiowych, anodowanych na kolor naturalnego aluminium o wysokości do oprawy h=10m i wysiegniku 2,5m o kącie 5 stopni wraz z fundamentem prefabrykowanym zgodnie z dokumentacją projektową | D97: kpl | E97: 4.00
A98: 3. | C98: - zabudowa słupów aluminiowych, anodowanych na kolor naturalnego aluminium o wysokości do oprawy h=10m i wysiegniku 1m o kącie 5 stopni wraz z fundamentem prefabrykowanym zgodnie z dokumentacją projektową | D98: kpl | E98: 23.00
A99: 4. | C99: - zabudowa opraw oświetleniowych LED 105W, 4000K z optyką DW zgodnie z dokumentacją projektową | D99: kpl | E99: 13.00
A100: 5. | C100: - zabudowa opraw oświetleniowych LED 79W, 4000K z optyką T2 zgodnie z dokumentacją projektową | D100: kpl | E100: 6.00
A101: 6. | C101: - zabudowa opraw oświetleniowych LED 67W, 4000K z optyką T2 zgodnie z dokumentacją projektową | D101: kpl | E101: 4.00
A102: 7. | C102: - zabudowa opraw oświetleniowych LED 55W, 4000K z optyką T2 zgodnie z dokumentacją projektową | D102: kpl | E102: 4.00
A103: 8. | C103: - zabudowa kabla YAKXS 4x35 zgodnie z dokumentacja projektową | D103: mb | E103: 1077.00
A104: 9. | C104: - zabudowa bednarki FeZn30x4 zgodnie z dokumentacja projektową | D104: mb | E104: 1077.00
A105: 10. | C105: - wykonanie przewiertów/przecisków rurą np. typu SRS-G 110 zgodnie z dokumentacja projektową | D105: mb | E105: 138.00
A106: 11. | C106: - zabudowa rur ochronncyh np. typu SRS 110 zgodnie z dokumentacja projektową | D106: mb | E106: 64.00
A107: 12. | C107: - zabudowa rur ochronncyh np. typu DVK 110 zgodnie z dokumentacja projektową | D107: mb | E107: 90.00
A108: 13. | C108: - zabudowa złącza słupowego/tabliczki słupowej zgodnie z dokumentacja projektową | D108: kpl. | E108: 27.00
A109: 14. | C109: - zabudowa uziomu stalowego ocynkowanego pogrążalnego fi 20, l=2x12m (R<10Ω) zgodnie z dokumentacja projektową | D109: kpl. | E109: 1.00
A110: 15. | C110: - zabudowa uziomu stalowego ocynkowanego pogrążalnego fi 20, l=12m (R<30Ω) zgodnie z dokumentacja projektową | D110: kpl. | E110: 4.00
A111: 16. | C111: - zabudowa przewodu w słupie typu YDYżo 3x2,5 zgodnie z dokumentacja projektową | D111: mb | E111: 324.00
A112: 17. | C112: - wykonanie pomiarów elektrycznych powykonawczych | D112: kpl. | E112: 1.00
A113: 18. | C113: - wykonanie pomiarówfotometrycznych powykonawczych | D113: kpl. | E113: 1.00
A114: 19. | C114: - obsługa geodezyjna | D114: kpl. | E114: 1.00
B115: RAZEM | G115: =SUM(G96:G114) -> 0.00
A116: Budowa oświetlenia drogowego w m. Lisewo od km 11+910 do km 14+130
A117: 1. | C117: - zabudowa szafy oświetlenia ulicznego SOU-3 zgodnie z dokumentacją projektową | D117: kpl | E117: 1.00
A118: 4. | C118: - zabudowa słupów aluminiowych, anodowanych na kolor naturalnego aluminium o wysokości do oprawy h=10m i wysiegniku 3,5m o kącie 5 stopni wraz z fundamentem prefabrykowanym zgodnie z dokumentacją projektową | D118: kpl | E118: 2.00
A119: 5. | C119: - zabudowa słupów aluminiowych, anodowanych na kolor naturalnego aluminium o wysokości do oprawy h=10m i wysiegniku 2,5m o kącie 5 stopni wraz z fundamentem prefabrykowanym zgodnie z dokumentacją projektową | D119: kpl | E119: 6.00
A120: 6. | C120: - zabudowa słupów aluminiowych, anodowanych na kolor naturalnego aluminium o wysokości do oprawy h=10m i wysiegniku 1m o kącie 5 stopni wraz z fundamentem prefabrykowanym zgodnie z dokumentacją projektową | D120: kpl | E120: 66.00
A121: 7. | C121: - zabudowa słupów aluminiowych, anodowanych na kolor naturalnego aluminium o wysokości do oprawy h=5,5m i wysiegniku 2,5m o kącie 5 stopni wraz z fundamentem prefabrykowanym zgodnie z dokumentacją projektową | D121: kpl | E121: 5.00
A122: 8. | C122: - zabudowa słupów aluminiowych, anodowanych na kolor naturalnego aluminium o wysokości do oprawy h=5,5m i wysiegniku 1,5m o kącie 5 stopni wraz z fundamentem prefabrykowanym zgodnie z dokumentacją projektową | D122: kpl | E122: 7.00
A123: 9. | C123: - zabudowa słupów aluminiowych, anodowanych na kolor naturalnego aluminium o wysokości do oprawy h=5,5m i wysiegniku 0,5m o kącie 5 stopni wraz z fundamentem prefabrykowanym zgodnie z dokumentacją projektową | D123: kpl | E123: 6.00
A124: 10. | C124: - zabudowa opraw oświetleniowych LED 154W, 4000K z optyką DW zgodnie z dokumentacją projektową | D124: kpl | E124: 2.00
A125: 11. | C125: - zabudowa opraw oświetleniowych LED 105W, 4000K z optyką DW zgodnie z dokumentacją projektową | D125: kpl | E125: 10.00
A126: 12. | C126: - zabudowa opraw oświetleniowych LED 79W, 4000K z optyką T2 zgodnie z dokumentacją projektową | D126: kpl | E126: 54.00
A127: 13. | C127: - zabudowa opraw oświetleniowych LED 67W, 4000K z optyką T2 zgodnie z dokumentacją projektową | D127: kpl | E127: 4.00
A128: 14. | C128: - zabudowa opraw oświetleniowych LED 55W, 4000K z optyką T2 zgodnie z dokumentacją projektową | D128: kpl | E128: 4.00
A129: 15. | C129: - zabudowa opraw oświetleniowych LED 39W, 4000K z optyką T2 zgodnie z dokumentacją projektową | D129: kpl | E129: 2.00
A130: 16. | C130: - zabudowa opraw oświetleniowych LED 86W, 6000K P asymetrycznych zgodnie z dokumentacją projektową | D130: kpl | E130: 16.00
A131: 17. | C131: - zabudowa kabla YAKXS 4x35 zgodnie z dokumentacja projektową | D131: mb | E131: 3230.00
A132: 18. | C132: - zabudowa bednarki FeZn30x4 zgodnie z dokumentacja projektową | D132: mb | E132: 3230.00
A133: 19. | C133: - wykonanie przewiertów/przecisków rurą np. typu SRS-G 110 zgodnie z dokumentacja projektową | D133: mb | E133: 286.00
A134: 20. | C134: - zabudowa rur ochronncyh np. typu SRS 110 zgodnie z dokumentacja projektową | D134: mb | E134: 132.00
A135: 21. | C135: - zabudowa rur ochronncyh np. typu DVK 110 zgodnie z dokumentacja projektową | D135: mb | E135: 624.00
A136: 22. | C136: - zabudowa złącza słupowego/tabliczki słupowej zgodnie z dokumentacja projektową | D136: kpl. | E136: 92.00
A137: 23. | C137: - zabudowa uziomu stalowego ocynkowanego pogrążalnego fi 20, l=2x12m (R<10Ω) zgodnie z dokumentacja projektową | D137: kpl. | E137: 1.00
A138: 24. | C138: - zabudowa uziomu stalowego ocynkowanego pogrążalnego fi 20, l=12m (R<30Ω) zgodnie z dokumentacja projektową | D138: kpl. | E138: 12.00
A139: 25. | C139: - zabudowa przewodu w słupie typu YDYżo 3x2,5 zgodnie z dokumentacja projektową | D139: mb | E139: 1200.00
A140: 26. | C140: - wykonanie pomiarów elektrycznych powykonawczych | D140: kpl. | E140: 1.00
A141: 27. | C141: - wykonanie pomiarów fotometrycznych powykonawczych | D141: kpl. | E141: 1.00
A142: 28. | C142: - obsługa geodezyjna | D142: kpl. | E142: 1.00
A143: 29. | C143: - demontż istniejącego punktu oświetleniowego parkowego + 3 x oprawa typu kula | D143: kpl | E143: 2.00
A144: 30. | C144: - demontż istniejącego punktu oświetleniowego kompletnie wyposażonego typu EOC-10,5/2,5 wraz z oprawą | D144: kpl | E144: 9.00
A145: 31. | C145: - demontaż linii kablowej YAKXS 4x35 | D145: mb | E145: 345.00
G147: =SUM(G31,G38,G66,G94,G115,G146) -> 0.00
B152: ________________ | D152: ______________
B153: miejscowość, data | D153: podpis Wykonawcy

Sheet Zasilanie
A1: =DANE!B3 -> Aktualizacja i optymalizacja dokumentacji projektowej zadania wraz z pełnieniem nadzoru autorskiego podczas realizacji Inwestycji tj.: ”Rozbudowa drogi wojewódzkiej nr 548 Stolno-Wąbrzeźno od km 0+005 do km 29+619 z wyłączeniem węzła autostradowego w m. Lisewo od km 14+144 do km 15+146” Odcinek nr 1 – od km 0+005 do km 14+144
A2: Branża: | C2: BRANŻA ELEKTROENERGETYCZNA 22.07
A3: Obiekt: | C3: Zasilanie obiektów
A4: Kod CPV: | C4: 45000000-9 Roboty budowlane w zakresie wznoszenia kompletnych obiektów budowlanych lub ich części oraz roboty w zakresie inżynierii lądowej i wodnej
A5: Poz. | B5: Podstawa wyceny | C5: Wyszczególnienie elementu rozliczeniowego | D5: Jedn. | E5: Ilość jedn. | F5: Cena jedn. | G5: Wartość robót
B6: U.07.07.01 | C6: Zasilanie obiektów | D6: x | E6: x | F6: x | G6: x
A7: ZASILANIE URZĄDZEŃ
A8: L.p. | B8: Numer STWiORB | C8: Wyszczególnienie elementu rozliczeniowego | D8: Jednostka | F8: Cena jednostkowa | G8: Wartość robót
D9: Nazwa | E9: Ilość
B10: U.01.03.02 | C10: Przebudowa i budowa kablowych linii energetycznych | D10: x | E10: x | F10: x | G10: x
A11: Budowa zasilania stacji meteorologicznej w m. Stolno w km 0+050
A12: 1. | C12: - zabudowa kompletnej stacji meteorologicznej zgodnie ze specyfikacją Zamawiajacego | D12: kpl | E12: 1
A13: 2. | C13: - zabudowa kabla YKXS 3x10 zgodnie z dokumentacja projektową | D13: mb | E13: 50.00
A14: 3. | C14: - wykonanie przewiertów/przecisków rurą np. typu SRS-G 110 zgodnie z dokumentacja projektową | D14: mb | E14: 30.00
A15: 4. | C15: - zabudowa rur ochronncyh np. typu DVK 110 zgodnie z dokumentacja projektową | D15: mb | E15: 10.00
A16: 5. | C16: - zabudowa uziomu stalowego ocynkowanego pogrążalnego fi 20, l=2x12m (R<10Ω) zgodnie z dokumentacja projektową | D16: kpl. | E16: 1.00
A17: 6. | C17: - wykonanie pomiarów elektrycznych powykonawczych | D17: kpl. | E17: 1.00
A18: 7. | C18: - obsługa geodezyjna | D18: kpl. | E18: 1.00
B19: RAZEM | G19: =SUM(G12:G18) -> 0.00
A20: Budowa zasilania fotoradaru w m. Kamlarki w km 7+105
A21: 1. | C21: - zabudowa kompletnego fotoradaru zgodnie ze specyfikacją Zamawiajacego | D21: kpl | E21: 1
A22: 2. | C22: - zabudowa kabla YKXS 3x10 zgodnie z dokumentacja projektową | D22: mb | E22: 20.00
A23: 4. | C23: - zabudowa rur ochronncyh np. typu DVK 110 zgodnie z dokumentacja projektową | D23: mb | E23: 12.00
A24: 3. | C24: - zabudowa uziomu stalowego ocynkowanego pogrążalnego fi 20, l=2x12m (R<10Ω) zgodnie z dokumentacja projektową | D24: kpl. | E24: 1.00
A25: 4. | C25: - wykonanie pomiarów elektrycznych powykonawczych | D25: kpl. | E25: 1.00
A26: 5. | C26: - obsługa geodezyjna | D26: kpl. | E26: 1.00
B27: RAZEM | G27: =SUM(G21:G26) -> 0.00
A28: Budowa zasilania pompowni PD2 w m. Krusin w km 9+640
A29: 1. | C29: - zabudowa złacza kablowego typu ZK-1a zgodnie z dokumentacją projektową | D29: kpl | E29: 2
A30: 2. | C30: - zabudowa kabla YKXS 4x70 zgodnie z dokumentacja projektową | D30: mb | E30: 135.00
A31: 3. | C31: - zabudowa kabla YKXS 4x25 zgodnie z dokumentacja projektową | D31: mb | E31: 13.00
A32: 4. | C32: - wykonanie przewiertów/przecisków rurą np. typu SRS-G 110 zgodnie z dokumentacja projektową | D32: mb | E32: 38.00
A33: 5. | C33: - zabudowa rur ochronncyh np. typu DVK 110 zgodnie z dokumentacja projektową | D33: mb | E33: 72.00
A34: 6. | C34: - zabudowa uziomu stalowego ocynkowanego pogrążalnego fi 20, l=2x12m (R<10Ω) zgodnie z dokumentacja projektową | D34: kpl. | E34: 1.00
A35: 7. | C35: - wykonanie pomiarów elektrycznych powykonawczych | D35: kpl. | E35: 1.00
A36: 8. | C36: - obsługa geodezyjna | D36: kpl. | E36: 1.00
B37: RAZEM | G37: =SUM(G29:G36) -> 0.00
A38: Budowa zasilania pompowni PD1 w m. Lisewo w km 10+285
A39: 1. | C39: - zabudowa złacza kablowego typu ZK-1a zgodnie z dokumentacją projektową | D39: kpl | E39: 2.00
A40: 2. | C40: - zabudowa kabla YKXS 4x70 zgodnie z dokumentacja projektową | D40: mb | E40: 150.00
A41: 3. | C41: - zabudowa kabla YKXS 4x25 zgodnie z dokumentacja projektową | D41: mb | E41: 15.00
A42: 4. | C42: - zabudowa rur ochronncyh np. typu SRS 110 zgodnie z dokumentacja projektową | D42: mb | E42: 12.00
A43: 5. | C43: - zabudowa rur ochronncyh np. typu DVK 110 zgodnie z dokumentacja projektową | D43: mb | E43: 11.00
A44: 6. | C44: - zabudowa uziomu stalowego ocynkowanego pogrążalnego fi 20, l=2x12m (R<10Ω) zgodnie z dokumentacja projektową | D44: kpl. | E44: 1.00
A45: 7. | C45: - wykonanie pomiarów elektrycznych powykonawczych | D45: kpl. | E45: 1.00
A46: 8. | C46: - obsługa geodezyjna | D46: kpl. | E46: 1.00
B47: RAZEM | G47: =SUM(G39:G46) -> 0.00
G48: =SUM(G19,G27,G37,G47) -> 0.00
B52: ________________ | D52: ______________
B53: miejscowość, data | D53: podpis Wykonawcy

Sheet PKP PLK
A1: =DANE!B3 -> Aktualizacja i optymalizacja dokumentacji projektowej zadania wraz z pełnieniem nadzoru autorskiego podczas realizacji Inwestycji tj.: ”Rozbudowa drogi wojewódzkiej nr 548 Stolno-Wąbrzeźno od km 0+005 do km 29+619 z wyłączeniem węzła autostradowego w m. Lisewo od km 14+144 do km 15+146” Odcinek nr 1 – od km 0+005 do km 14+144
A2: Branża: | C2: BRANŻA ELEKTROENERGETYCZNA 22.07
A3: Obiekt: | C3: Sieci wł.PKP PLK
A4: Kod CPV: | C4: 45000000-9 Roboty budowlane w zakresie wznoszenia kompletnych obiektów budowlanych lub ich części oraz roboty w zakresie inżynierii lądowej i wodnej
A5: Poz. | B5: Podstawa wyceny | C5: Wyszczególnienie elementu rozliczeniowego | D5: Jedn. | E5: Ilość jedn. | F5: Cena jedn. | G5: Wartość robót
B6: U.01.03.02 U.07.07.01 | C6: Przebudowa i budowa kablowych linii energetycznych Budowa oswietlenia drogowego | D6: x | E6: x | F6: x | G6: x
A7: Przebudowa oświetlenia przejazdu kolejowego PKP PLK
A8: 1. | C8: - zabudowa punktów oświetleniowych z demontażu zgodnie z dokumentacją projektową | D8: kpl | E8: 4
A9: 3. | C9: - zabudowa kabla YKXS 4x10 zgodnie z dokumentacja projektową | D9: mb | E9: 40.00
A10: 4. | C10: - wykonanie przewiertów/przecisków rurą np. typu SRS-G 110 zgodnie z dokumentacja projektową | D10: mb | E10: 23.00
A11: 5. | C11: - zabudowa rur ochronncyh np. typu DVR 50 zgodnie z dokumentacja projektową | D11: mb | E11: 40.00
A12: 6. | C12: - zabudowa złącza słupowego/tabliczki słupowej zgodnie z dokumentacja projektową | D12: kpl. | E12: 2.00
A13: 7. | C13: - zabudowa uziomu stalowego ocynkowanego pogrążalnego fi 20, l=2x12m (R<10Ω) zgodnie z dokumentacja projektową | D13: kpl. | E13: 2.00
A14: 8. | C14: - zabudowa mufy kablowej termokurczliwej nN | D14: kpl. | E14: 1.00
A15: 9. | C15: - wykonanie pomiarów elektrycznych powykonawczych | D15: kpl. | E15: 1.00
A16: 10. | C16: - obsługa geodezyjna | D16: kpl. | E16: 1.00
A17: 11. | C17: - demontż istniejącego punktu oświetleniowego kompletnie wyposażonego typu WZ-8 z wysięgnikiem oraz oprawą (oprawa do ponownej zabudowy po oczyszczeniu i wymianie źródła światła na nowe) | D17: kpl | E17: 4
A18: 12. | C18: - demontaż linii kablowej nN | D18: mb | E18: 30
B19: RAZEM
A20: Przebudowa sygnalizacji przejazdu kolejowego PKP PLK
A21: 1. | C21: - zabudowa kompletnych sygnalizatorów z demontażu | D21: kpl | E21: 2.00
A22: 2. | C22: - zabudowa kompletnych punktów monitoringu z demontażu | D22: kpl | E22: 2.00
A23: 3. | C23: - zabudowa kompletnych rogatek z demontażu wymianą drągów na dłuższe | D23: kpl | E23: 4.00
A24: 4. | C24: - zabudowa kabla YKSY 10x1,5 zgodnie z dokumentacja projektową | D24: mb | E24: 40.00
A25: 5. | C25: - przełożenie na nową trase istniejących kabli zgodnie z dokumentacja projektową | D25: mb | E25: 35.00
A26: 6. | C26: - wykonanie przewiertów/przecisków rurą np. typu SRS-G 110 zgodnie z dokumentacja projektową | D26: mb | E26: 23.00
A27: 7. | C27: - zabudowa rur ochronncyh np. typu DVR 50 zgodnie z dokumentacja projektową | D27: mb | E27: 40.00
A28: 8. | C28: - zabudowa rur ochronncyh dzielonych np. typu A110PS zgodnie z dokumentacja projektową | D28: mb | E28: 20.00
A29: 9. | C29: - zabudowa uziomu stalowego ocynkowanego pogrążalnego fi 20, l=2x12m (R<10Ω) zgodnie z dokumentacja projektową | D29: kpl. | E29: 2.00
A30: 10. | C30: - zabudowa mufy kablowej nN do kabli wielożyłowych sygnalizacyjnych | D30: kpl. | E30: 1.00
A31: 11. | C31: - wykonanie pomiarów elektrycznych powykonawczych | D31: kpl. | E31: 1.00
A32: 12. | C32: - obsługa geodezyjna | D32: kpl. | E32: 1.00
A33: 13. | C33: - demontż istniejącego sygnalizatora | D33: kpl | E33: 4.00
A34: 14. | C34: - demontż istniejących punktów monitoringu | D34: kpl | E34: 2.00
A35: 15. | C35: - demontż istniejących rogatek | D35: kpl | E35: 4.00
A36: 16. | C36: - demontaż linii kablowej sygnalizacyjnej | D36: mb | E36: 60.00
B37: RAZEM
B42: ________________ | D42: ______________
B43: miejscowość, data | D43: podpis Wykonawcy

Sheet Melioracja
A1: =DANE!B3 -> Aktualizacja i optymalizacja dokumentacji projektowej zadania wraz z pełnieniem nadzoru autorskiego podczas realizacji Inwestycji tj.: ”Rozbudowa drogi wojewódzkiej nr 548 Stolno-Wąbrzeźno od km 0+005 do km 29+619 z wyłączeniem węzła autostradowego w m. Lisewo od km 14+144 do km 15+146” Odcinek nr 1 – od km 0+005 do km 14+144
A2: Branża: | C2: BRANŻA MELIORACYJNA 22.07
A3: Obiekt: | C3: Melioracje szczegółowe
A4: Kod CPV: | C4: 45000000-9 Roboty budowlane w zakresie wznoszenia kompletnych obiektów budowlanych lub ich części oraz roboty w zakresie inżynierii lądowej i wodnej
A5: Poz. | B5: Podstawa wyceny | C5: Wyszczególnienie elementu rozliczeniowego | D5: Jedn. | E5: Ilość jedn. | F5: Cena jedn. | G5: Wartość robót
C6: Roboty przygotowawcze | F6: x | G6: x
A7: 1 | C7: Roboty pomiarowe - wytyczenie trasy rurociągów | D7: m | E7: 604.10
A8: 2 | C8: Wykopy kontrolne | D8: m3 | E8: 504.00
C9: Roboty ziemne | D9: X | E9: X | F9: X | G9: X
A10: =A8+1 -> 3 | C10: Usunięcie warstwy ziemi urodzajnej 30 cm wraz z odtworzeniem (rozplantowaniem po zasypaniu wykopu) | D10: m2 | E10: 3395.04
A11: =A10+1 -> 4 | C11: Wykopy mechaniczne z rozkopem o ścianach z nachyleniem 1:1.5 | D11: m3 | E11: 7043.00
A12: =A11+1 -> 5 | C12: Podsypka, obsypka piaskowa wraz z zagęszczaniem ręcznym | D12: m3 | E12: 241.64
A13: 6 | C13: Zasypanie wykopów gruntem rodzimym wraz z zagęszczaniem mechanicznym | D13: m3 | E13: 6727.00
A14: =A13+1 -> 7 | C14: Wywiezienie nadmiaru gruntu z wykopu i składowanie na terenie budowy | D14: m3 | E14: 317.00
C15: Rurociągi PVC ze ścianką litą | D15: X | E15: X | F15: X | G15: X
A16: =A14+1 -> 8 | C16: Rura PVC DN 200* | D16: m | E16: 402.70
A17: =A16+1 -> 9 | C17: Rura PVC DN 300* | D17: m | E17: 85.40
A18: =A17+1 -> 10 | C18: Rura PVC DN 500* | D18: m | E18: 85.40
C19: Rury osłonowe PE | D19: X | E19: X | F19: X | G19: X
A20: =A18+1 -> 11 | C20: Rura osłonowa DN 300* | D20: m | E20: 100.70
A21: =A20+1 -> 12 | C21: Rura osłonowa DN 400* | D21: m | E21: 85.40
A22: =A21+1 -> 13 | C22: Rura osłonowa DN 800* | D22: m | E22: 85.40
A23: 14 | C23: Płozy dystansowe dla PE 300 R28* | D23: szt. | E23: 56.00
A24: 15 | C24: Płozy dystansowe dla PE 400 R28* | D24: szt. | E24: 99.00
A25: 16 | C25: Płozy dystansowe dla PE 800 SM DUO I* | D25: szt. | E25: 99.00
C26: Studnie melioracyjne bez dna | D26: X | E26: X | F26: X | G26: X
A27: =A25+1 -> 17 | C27: Studzienka śred. 1 m, wys. 3.5 m* | D27: kpl | E27: 29.00
C28: Wyloty melioracyjne | D28: X | E28: X | F28: X | G28: X
A29: =A27+1 -> 18 | C29: Wylot prefabrykowany DN300 wg KPED 02.17* | D29: kpl | E29: 1.00
A30: =A29+1 -> 19 | C30: Wylot prefabrykowany DN600 wg KPED 02.16* | D30: kpl | E30: 2.00
A31: =A30+1 -> 20 | C31: Wylot prefabrykowany DN800 wg KPED 02.16* | D31: kpl | E31: 1.00
C32: Zaślepka PCV | D32: X | E32: X | F32: X | G32: X
A33: =A31+1 -> 21 | C33: Zaślepka PCV lub korek betonowy | D33: kpl | E33: 3.00
C34: Osadnik przy wlocie do studni melioracyjnych z rowów | D34: X | E34: X | F34: X | G34: X
A35: =A33+1 -> 22 | C35: Osadnik wg KPED 01.14 | D35: kpl | E35: 1.00
G36: =SUM(G6:G35) -> 0.00
B42: ________________ | D42: ______________
B43: miejscowość, data | D43: podpis Wykonawcy
